Workbook

Sheet About
A10: Purpose
A11: This tool has been produced to: provide evidence of on-site NRMM compliance with GLA NRMM policy; and/or compare emissions between scenarios to help make decisions on the equipment used; and/or evidence any emission reductions as a result of plant selection or operation.
A14: The detailed User Guide can be found here: | H14: <Link not yet available, please request>
A16: Cell Formatting Guide
B18: Required input
B20: Optional input
B22: Output
A24: Working Towards UN Sustainable Development Goals
F26: 11.6 By 2030, reduce the adverse per capita environmental impact of cities, including by paying special attention to air quality and municipal and other waste management
F34: 13.2 Integrate climate change measures into national policies, strategies and planning 13.3 Improve education, awareness-raising and human and institutional capacity on climate change mitigation, adaptation, impact reduction and early warning

Sheet Versions
F10: Modification Date | G10: Update By | H10: Comment
D12: 1 | F12: 2022-01-01 | G12: SAB, JB | H12: First NRMM emissions tool
D13: 2 | F13: 2023-03-31 | G13: SAB, JB | H13: V2 - Carbon emissions calculations. Scenario comparison
D14: 3
D15: 4
D16: 5
D17: 6
D18: 7
D19: 8
D20: 9
D21: 10
D22: 11
D23: 12
D24: 13
D25: 14
D26: 15
D27: 16
D28: 17
D29: 18
D30: 19
D31: 20
D32: 21
D33: 22

Sheet Site details
B2: USER INPUTS | I2: London's 'Low Emission Zone' for Non-Road Mobile Machinery (NRMM)
B3: Is the site located in the Central Activity Zone or an Opportunity Area: | I3: https://www.london.gov.uk/programmes-and-strategies/environment-and-climate-change/pollution-and-air-quality/nrmm#development-zones-map-title
B5: Development name: | I5: The NRMM Low Emission Zone requires that all engines with a power rating between 37 kW and 560 kW meet an emission standard based on the engine emission “stage”. The standards that need to be met depend on where the construction site is: - The current standards are stage IV for construction machinery operating in the Central Activities Zone and Opportunity Areas (including Canary Wharf) and stage IIIB in the rest of London. - Stages IIIB and IV have not been defined for machines with constant speed engines, such as generators. This means that these machines will need to meet stage V. - Stage IV has also not been directly defined for variable speed engines smaller than 56 kW. In most cases these engines will need to meet stage V if they are in the Central Activities Zone and Opportunity Areas (OAs). Future changes to the standards The standards for the NRMM Low Emission Zone will get progressively tighter over time: - From 1 January 2025 the standards will be stage IV throughout London; - From 1 of January 2030 the standards will be stage V throughout London; and - From 1 of January 2040 only zero emission machinery will be allowed. Development zones map
B6: Landowner:
B7: Principal contractor:
B8: Site addess:
B9: Site postcode:
B10: Type of project: | C10: Building
B11: Type of construction:
B12: State of current site:
B14: Construction phases
B15: =IF($C$10="Building", $I43, IF($C$10="Infrastructure", $J43, "Select Project Type Above")) -> Site setup and demolition
B16: Basement excavation and piling
B17: Sub-structure
B18: Super-structure
B19: Cladding | V19: Central Activity Zone and Opportunity Areas
B20: Fit-out, testing and commissioning
V22: Other areas of Greater London
I40: Building | J40: Renovation of existing building | K40: Vacant
I41: Infrastructure | J41: New build | K41: Structures to be demolished
K42: Structures to be retained
I43: Site setup and demolition | J43: Site establishment, clearance & alterations
I44: Basement excavation and piling | J44: Excavation and foundations
I45: Sub-structure | J45: Sub-structure | K45: Sub-structure relates to the part of the building that is constructed below ground level
I46: Super-structure | J46: Super-structure | K46: Super-structure is the part of the building that is above ground
I47: Cladding | J47: Services & systems installation
I48: Fit-out, testing and commissioning | J48: Fit-out, testing and commissioning
I49: Yes
I50: No

Sheet NOx compliance (hidden)
A3: Sum of Project NOx (kg) | B3: Sum of Benchmark NOx (kg)
A4: 15.55046342 | B4: 74.06784 | D4: =(GETPIVOTDATA("Sum of Project NOx (kg)",$A$3)-GETPIVOTDATA("Sum of Benchmark NOx (kg)",$A$3))/GETPIVOTDATA("Sum of Benchmark NOx (kg)",$A$3) -> -0.7900510746 | E4: =IF(D4>0," over benchmark", " under benchmark") -> under benchmark | F4: =_xlfn.CONCAT(ROUND(D4*100,0),"%",E4) -> -79% under benchmark

Sheet PM compliance (hidden)
A3: Sum of Project PM (kg) | B3: Sum of Benchmark PM (kg)
A4: 1.358280969 | B4: 3.252384 | D4: =(GETPIVOTDATA("Sum of Project PM (kg)",$A$3)-GETPIVOTDATA("Sum of Benchmark PM (kg)",$A$3))/GETPIVOTDATA("Sum of Benchmark PM (kg)",$A$3) -> -0.5823737391 | E4: =IF(D4>0," over benchmark", " under benchmark") -> under benchmark | F4: =_xlfn.CONCAT(ROUND(D4*100,0),"%",E4) -> -58% under benchmark

Sheet Phases Compliance (hidden)
A3: Row Labels | B3: Sum of Project NOx (kg) | C3: Sum of Project PM (kg) | F3: Row Labels | G3: Sum of Project carbon (kg)
A4: 1) Site setup and demolition | B4: 2.369600594 | C4: 0.1298519968 | F4: 1) Site setup and demolition | G4: 4634.305223
A5: 3) Sub-structure | B5: 4.032 | C5: 0.36825 | F5: 5) Cladding | G5: 7733.8695
A6: 6) Fit-out, testing and commissioning | B6: 5.116862822 | C6: 0.491928972 | F6: 3) Sub-structure | G6: 7733.8695
A7: 5) Cladding | B7: 4.032 | C7: 0.36825 | F7: 6) Fit-out, testing and commissioning | G7: 683.6913513
A8: Grand Total | B8: 15.55046342 | C8: 1.358280969 | F8: Grand Total | G8: 20785.73557

Sheet Project emissions breakdown (hidden)
A3: Row Labels | B3: Sum of Project NOx (kg) | E3: Row Labels | F3: Sum of Project PM (kg) | I3: Row Labels | J3: Sum of Project carbon (kg)
A4: Excavator | B4: 4.032 | E4: Excavator | F4: 0.36825 | I4: Excavator | J4: 7733.8695
A5: Telehandler | B5: 4.032 | E5: Telehandler | F5: 0.36825 | I5: Telehandler | J5: 7733.8695
A6: Constant speed engine (e.g. Generator) | B6: 2.369600594 | E6: Constant speed engine (e.g. Generator) | F6: 0.1298519968 | I6: Constant speed engine (e.g. Generator) | J6: 4634.305223
A7: Cleaning equipment | B7: 5.116862822 | E7: Cleaning equipment | F7: 0.491928972 | I7: Cleaning equipment | J7: 683.6913513
A8: Grand Total | B8: 15.55046342 | E8: Grand Total | F8: 1.358280969 | I8: Grand Total | J8: 20785.73557

Sheet GLA Compliance
D2: GLA NRMM Policy Compliance Tracker | K2: NOx emissions | L2: ='NOx compliance'!F4 -> -79% under benchmark | N2: PM emissions | O2: ='PM compliance'!F4 -> -58% under benchmark
A27: Input | G27: Construction year: | J27: Output
C28: GLA NRMM policy area: | E28: Other areas of Greater London | H28: 2023
A30: Unique ID | B30: Construction Phase | C30: Equipment type | D30: Estimated usage (hrs) | E30: Power rating (kW) | F30: Technology/ fuel type | G30: EU Stage | H30: Abatement technology | I30: Resultant EU Stage | J30: Compliance check | K30: Project assumed EU stage | L30: Project NOx (kg) | M30: Project PM (kg) | N30: Benchmark assumed EU stage | O30: Benchmark NOx (kg) | P30: Benchmark PM (kg) | Q30: Power rating range | R30: Project EU Stage | S30: Project Diesel NOx emission factor g/kWh | T30: Project Diesel PM emission factor g/kWh | U30: Project LPG NOx EF g/kWh | V30: Project LPG PM EF g/kWh | W30: Project Hybrid NOx EF g/kWh | X30: Project Hybrid PM EF g/kWh | Y30: Project Biodiesel NOx EF g/kWh | Z30: Project Biodiesel PM EF g/kWh | AA30: Benchmark NOx EF g/kWh | AB30: Benchmark PM EF g/kWh
A31: 1 | B31: 1) Site setup and demolition | C31: Constant speed engine (e.g. Generator) | D31: 100 | E31: 72 | F31: Hybrid | G31: EU Stage V | I31: n/a | J31: =IF(MATCH(GLA_Input[[#This Row],[Project assumed EU stage]],Lists!$C$8:$C$14,0)>=MATCH(GLA_Input[[#This Row],[Benchmark assumed EU stage]],Lists!$C$8:$C$14,0),"Compliant","Non-compliant") -> Compliant | K31: =IF(OR(GLA_Input[[#This Row],[Resultant EU Stage]]="n/a",GLA_Input[[#This Row],[Resultant EU Stage]]="",GLA_Input[[#This Row],[Resultant EU Stage]]=0),GLA_Input[[#This Row],[EU Stage]],GLA_Input[[#This Row],[Resultant EU Stage]]) -> EU Stage V | L31: =IF(GLA_Input[[#This Row],[Technology/ fuel type]]=Lists!$N$8,GLA_Input[[#This Row],[Project Diesel NOx emission factor g/kWh]],IF(GLA_Input[[#This Row],[Technology/ fuel type]]=Lists!$N$9,GLA_Input[[#This Row],[Project LPG NOx EF g/kWh]],IF(GLA_Input[[#This Row],[Technology/ fuel type]]=Lists!$N$10,GLA_Input[[#This Row],[Project Biodiesel NOx EF g/kWh]],IF(GLA_Input[[#This Row],[Technology/ fuel type]]=Lists!$N$11,GLA_Input[[#This Row],[Project Hybrid NOx EF g/kWh]],0))))*GLA_Input[[#This Row],[Estimated usage (hrs)]]*GLA_Input[[#This Row],[Power rating (kW)]]/1000 -> 2.369600594 | M31: =IF(GLA_Input[[#This Row],[Technology/ fuel type]]=Lists!$N$8,GLA_Input[[#This Row],[Project Diesel PM emission factor g/kWh]],IF(GLA_Input[[#This Row],[Technology/ fuel type]]=Lists!$N$9,GLA_Input[[#This Row],[Project LPG PM EF g/kWh]],IF(GLA_Input[[#This Row],[Technology/ fuel type]]=Lists!$N$10,GLA_Input[[#This Row],[Project Biodiesel PM EF g/kWh]],IF(GLA_Input[[#This Row],[Technology/ fuel type]]=Lists!$N$11,GLA_Input[[#This Row],[Project Hybrid PM EF g/kWh]],0))))*GLA_Input[[#This Row],[Estimated usage (hrs)]]*GLA_Input[[#This Row],[Power rating (kW)]]/1000 -> 0.1298519968 | N31: =IF(GLA_Input[[#This Row],[Estimated usage (hrs)]]=0,"",IFERROR(IF(GLA_Input[[#This Row],[Equipment type]]=Lists!$A$31,'GLA NRMM Policy'!$B$11,IF('GLA Compliance'!$H$28<'GLA NRMM Policy'!$C$6,VLOOKUP('GLA Compliance'!$E$28,'GLA NRMM Policy'!$A$7:$B$9,2,0), IF('GLA Compliance'!$H$28<'GLA NRMM Policy'!$D$6,'GLA NRMM Policy'!$C$7, IF('GLA Compliance'!$H$28<'GLA NRMM Policy'!$E$6,'GLA NRMM Policy'!$D$7,'GLA NRMM Policy'!$E$7)))),"")) -> EU Stage V | O31: =GLA_Input[[#This Row],[Benchmark NOx EF g/kWh]]*GLA_Input[[#This Row],[Estimated usage (hrs)]]*GLA_Input[[#This Row],[Power rating (kW)]]/1000 -> 2.90304 | P31: =GLA_Input[[#This Row],[Benchmark PM EF g/kWh]]*GLA_Input[[#This Row],[Estimated usage (hrs)]]*GLA_Input[[#This Row],[Power rating (kW)]]/1000 -> 0.159084 | Q31: =IF(GLA_Input[[#This Row],[Power rating (kW)]]<Lists!$F$8,Lists!$E$8, IF(GLA_Input[[#This Row],[Power rating (kW)]]<Lists!$F$9,Lists!$E$9, IF(GLA_Input[[#This Row],[Power rating (kW)]]<Lists!$F$10,Lists!$E$10, IF(GLA_Input[[#This Row],[Power rating (kW)]]<Lists!$F$11,Lists!$E$11, IF(GLA_Input[[#This Row],[Power rating (kW)]]<Lists!$F$12,Lists!$E$12, IF(GLA_Input[[#This Row],[Power rating (kW)]]<Lists!$F$13,Lists!$E$13, IF(GLA_Input[[#This Row],[Power rating (kW)]]<Lists!$F$14,Lists!$E$14,Lists!$E$15))))))) -> 56≤ kW <75 | R31: =IF(OR(GLA_Input[[#This Row],[Resultant EU Stage]]="n/a",GLA_Input[[#This Row],[Resultant EU Stage]]=""),GLA_Input[[#This Row],[EU Stage]],GLA_Input[[#This Row],[Resultant EU Stage]]) -> EU Stage V | S31: =SUMIFS('Emission Factors'!$K:$K,'Emission Factors'!$I:$I,GLA_Input[[#This Row],[Power rating range]],'Emission Factors'!$J:$J,GLA_Input[[#This Row],[Project EU Stage]]) -> 0.4032 | T31: =SUMIFS('Emission Factors'!$L:$L,'Emission Factors'!$I:$I,GLA_Input[[#This Row],[Power rating range]],'Emission Factors'!$J:$J,GLA_Input[[#This Row],[Project EU Stage]]) -> 0.022095 | U31: ='Emission Factors'!$P$10 -> 10 | V31: ='Emission Factors'!$R$10 -> 0.07 | W31: =(1-(((0.0301*GLA_Input[[#This Row],[Power rating (kW)]])+16.208)/100))*GLA_Input[[#This Row],[Project Diesel NOx emission factor g/kWh]] -> 0.3291111936 | X31: =(1-(((0.0301*GLA_Input[[#This Row],[Power rating (kW)]])+16.208)/100))*GLA_Input[[#This Row],[Project Diesel PM emission factor g/kWh]] -> 0.01803499956 | Y31: =GLA_Input[[#This Row],[Project Diesel NOx emission factor g/kWh]]*'Emission Factors'!$Q$11 -> 0.411264 | Z31: =GLA_Input[[#This Row],[Project Diesel PM emission factor g/kWh]]*'Emission Factors'!$S$11 -> 0.0198855 | AA31: =SUMIFS('Emission Factors'!$K:$K,'Emission Factors'!$I:$I,GLA_Input[[#This Row],[Power rating range]],'Emission Factors'!$J:$J,GLA_Input[[#This Row],[Benchmark assumed EU stage]]) -> 0.4032 | AB31: =SUMIFS('Emission Factors'!$L:$L,'Emission Factors'!$I:$I,GLA_Input[[#This Row],[Power rating range]],'Emission Factors'!$J:$J,GLA_Input[[#This Row],[Benchmark assumed EU stage]]) -> 0.022095
A32: 2 | B32: 3) Sub-structure | C32: Excavator | D32: 100 | E32: 100 | F32: Diesel | G32: EU Stage IV | I32: n/a | J32: =IF(MATCH(GLA_Input[[#This Row],[Project assumed EU stage]],Lists!$C$8:$C$14,0)>=MATCH(GLA_Input[[#This Row],[Benchmark assumed EU stage]],Lists!$C$8:$C$14,0),"Compliant","Non-compliant") -> Compliant | K32: =IF(OR(GLA_Input[[#This Row],[Resultant EU Stage]]="n/a",GLA_Input[[#This Row],[Resultant EU Stage]]="",GLA_Input[[#This Row],[Resultant EU Stage]]=0),GLA_Input[[#This Row],[EU Stage]],GLA_Input[[#This Row],[Resultant EU Stage]]) -> EU Stage IV | L32: =IF(GLA_Input[[#This Row],[Technology/ fuel type]]=Lists!$N$8,GLA_Input[[#This Row],[Project Diesel NOx emission factor g/kWh]],IF(GLA_Input[[#This Row],[Technology/ fuel type]]=Lists!$N$9,GLA_Input[[#This Row],[Project LPG NOx EF g/kWh]],IF(GLA_Input[[#This Row],[Technology/ fuel type]]=Lists!$N$10,GLA_Input[[#This Row],[Project Biodiesel NOx EF g/kWh]],IF(GLA_Input[[#This Row],[Technology/ fuel type]]=Lists!$N$11,GLA_Input[[#This Row],[Project Hybrid NOx EF g/kWh]],0))))*GLA_Input[[#This Row],[Estimated usage (hrs)]]*GLA_Input[[#This Row],[Power rating (kW)]]/1000 -> 4.032 | M32: =IF(GLA_Input[[#This Row],[Technology/ fuel type]]=Lists!$N$8,GLA_Input[[#This Row],[Project Diesel PM emission factor g/kWh]],IF(GLA_Input[[#This Row],[Technology/ fuel type]]=Lists!$N$9,GLA_Input[[#This Row],[Project LPG PM EF g/kWh]],IF(GLA_Input[[#This Row],[Technology/ fuel type]]=Lists!$N$10,GLA_Input[[#This Row],[Project Biodiesel PM EF g/kWh]],IF(GLA_Input[[#This Row],[Technology/ fuel type]]=Lists!$N$11,GLA_Input[[#This Row],[Project Hybrid PM EF g/kWh]],0))))*GLA_Input[[#This Row],[Estimated usage (hrs)]]*GLA_Input[[#This Row],[Power rating (kW)]]/1000 -> 0.36825 | N32: =IF(GLA_Input[[#This Row],[Estimated usage (hrs)]]=0,"",IFERROR(IF(GLA_Input[[#This Row],[Equipment type]]=Lists!$A$31,'GLA NRMM Policy'!$B$11,IF('GLA Compliance'!$H$28<'GLA NRMM Policy'!$C$6,VLOOKUP('GLA Compliance'!$E$28,'GLA NRMM Policy'!$A$7:$B$9,2,0), IF('GLA Compliance'!$H$28<'GLA NRMM Policy'!$D$6,'GLA NRMM Policy'!$C$7, IF('GLA Compliance'!$H$28<'GLA NRMM Policy'!$E$6,'GLA NRMM Policy'!$D$7,'GLA NRMM Policy'!$E$7)))),"")) -> EU Stage IIIB | O32: =GLA_Input[[#This Row],[Benchmark NOx EF g/kWh]]*GLA_Input[[#This Row],[Estimated usage (hrs)]]*GLA_Input[[#This Row],[Power rating (kW)]]/1000 -> 29.9376 | P32: =GLA_Input[[#This Row],[Benchmark PM EF g/kWh]]*GLA_Input[[#This Row],[Estimated usage (hrs)]]*GLA_Input[[#This Row],[Power rating (kW)]]/1000 -> 0.36825 | Q32: =IF(GLA_Input[[#This Row],[Power rating (kW)]]<Lists!$F$8,Lists!$E$8, IF(GLA_Input[[#This Row],[Power rating (kW)]]<Lists!$F$9,Lists!$E$9, IF(GLA_Input[[#This Row],[Power rating (kW)]]<Lists!$F$10,Lists!$E$10, IF(GLA_Input[[#This Row],[Power rating (kW)]]<Lists!$F$11,Lists!$E$11, IF(GLA_Input[[#This Row],[Power rating (kW)]]<Lists!$F$12,Lists!$E$12, IF(GLA_Input[[#This Row],[Power rating (kW)]]<Lists!$F$13,Lists!$E$13, IF(GLA_Input[[#This Row],[Power rating (kW)]]<Lists!$F$14,Lists!$E$14,Lists!$E$15))))))) -> 75≤ kW <130 | R32: =IF(OR(GLA_Input[[#This Row],[Resultant EU Stage]]="n/a",GLA_Input[[#This Row],[Resultant EU Stage]]=""),GLA_Input[[#This Row],[EU Stage]],GLA_Input[[#This Row],[Resultant EU Stage]]) -> EU Stage IV | S32: =SUMIFS('Emission Factors'!$K:$K,'Emission Factors'!$I:$I,GLA_Input[[#This Row],[Power rating range]],'Emission Factors'!$J:$J,GLA_Input[[#This Row],[Project EU Stage]]) -> 0.4032 | T32: =SUMIFS('Emission Factors'!$L:$L,'Emission Factors'!$I:$I,GLA_Input[[#This Row],[Power rating range]],'Emission Factors'!$J:$J,GLA_Input[[#This Row],[Project EU Stage]]) -> 0.036825 | U32: ='Emission Factors'!$P$10 -> 10 | V32: ='Emission Factors'!$R$10 -> 0.07 | W32: =(1-(((0.0301*GLA_Input[[#This Row],[Power rating (kW)]])+16.208)/100))*GLA_Input[[#This Row],[Project Diesel NOx emission factor g/kWh]] -> 0.325713024 | X32: =(1-(((0.0301*GLA_Input[[#This Row],[Power rating (kW)]])+16.208)/100))*GLA_Input[[#This Row],[Project Diesel PM emission factor g/kWh]] -> 0.0297479715 | Y32: =GLA_Input[[#This Row],[Project Diesel NOx emission factor g/kWh]]*'Emission Factors'!$Q$11 -> 0.411264 | Z32: =GLA_Input[[#This Row],[Project Diesel PM emission factor g/kWh]]*'Emission Factors'!$S$11 -> 0.0331425 | AA32: =SUMIFS('Emission Factors'!$K:$K,'Emission Factors'!$I:$I,GLA_Input[[#This Row],[Power rating range]],'Emission Factors'!$J:$J,GLA_Input[[#This Row],[Benchmark assumed EU stage]]) -> 2.99376 | AB32: =SUMIFS('Emission Factors'!$L:$L,'Emission Factors'!$I:$I,GLA_Input[[#This Row],[Power rating range]],'Emission Factors'!$J:$J,GLA_Input[[#This Row],[Benchmark assumed EU stage]]) -> 0.036825
A33: 3 | B33: 5) Cladding | C33: Telehandler | D33: 100 | E33: 100 | F33: Diesel | G33: EU Stage IV | I33: n/a | J33: =IF(MATCH(GLA_Input[[#This Row],[Project assumed EU stage]],Lists!$C$8:$C$14,0)>=MATCH(GLA_Input[[#This Row],[Benchmark assumed EU stage]],Lists!$C$8:$C$14,0),"Compliant","Non-compliant") -> Compliant | K33: =IF(OR(GLA_Input[[#This Row],[Resultant EU Stage]]="n/a",GLA_Input[[#This Row],[Resultant EU Stage]]="",GLA_Input[[#This Row],[Resultant EU Stage]]=0),GLA_Input[[#This Row],[EU Stage]],GLA_Input[[#This Row],[Resultant EU Stage]]) -> EU Stage IV | L33: =IF(GLA_Input[[#This Row],[Technology/ fuel type]]=Lists!$N$8,GLA_Input[[#This Row],[Project Diesel NOx emission factor g/kWh]],IF(GLA_Input[[#This Row],[Technology/ fuel type]]=Lists!$N$9,GLA_Input[[#This Row],[Project LPG NOx EF g/kWh]],IF(GLA_Input[[#This Row],[Technology/ fuel type]]=Lists!$N$10,GLA_Input[[#This Row],[Project Biodiesel NOx EF g/kWh]],IF(GLA_Input[[#This Row],[Technology/ fuel type]]=Lists!$N$11,GLA_Input[[#This Row],[Project Hybrid NOx EF g/kWh]],0))))*GLA_Input[[#This Row],[Estimated usage (hrs)]]*GLA_Input[[#This Row],[Power rating (kW)]]/1000 -> 4.032 | M33: =IF(GLA_Input[[#This Row],[Technology/ fuel type]]=Lists!$N$8,GLA_Input[[#This Row],[Project Diesel PM emission factor g/kWh]],IF(GLA_Input[[#This Row],[Technology/ fuel type]]=Lists!$N$9,GLA_Input[[#This Row],[Project LPG PM EF g/kWh]],IF(GLA_Input[[#This Row],[Technology/ fuel type]]=Lists!$N$10,GLA_Input[[#This Row],[Project Biodiesel PM EF g/kWh]],IF(GLA_Input[[#This Row],[Technology/ fuel type]]=Lists!$N$11,GLA_Input[[#This Row],[Project Hybrid PM EF g/kWh]],0))))*GLA_Input[[#This Row],[Estimated usage (hrs)]]*GLA_Input[[#This Row],[Power rating (kW)]]/1000 -> 0.36825 | N33: =IF(GLA_Input[[#This Row],[Estimated usage (hrs)]]=0,"",IFERROR(IF(GLA_Input[[#This Row],[Equipment type]]=Lists!$A$31,'GLA NRMM Policy'!$B$11,IF('GLA Compliance'!$H$28<'GLA NRMM Policy'!$C$6,VLOOKUP('GLA Compliance'!$E$28,'GLA NRMM Policy'!$A$7:$B$9,2,0), IF('GLA Compliance'!$H$28<'GLA NRMM Policy'!$D$6,'GLA NRMM Policy'!$C$7, IF('GLA Compliance'!$H$28<'GLA NRMM Policy'!$E$6,'GLA NRMM Policy'!$D$7,'GLA NRMM Policy'!$E$7)))),"")) -> EU Stage IIIB | O33: =GLA_Input[[#This Row],[Benchmark NOx EF g/kWh]]*GLA_Input[[#This Row],[Estimated usage (hrs)]]*GLA_Input[[#This Row],[Power rating (kW)]]/1000 -> 29.9376 | P33: =GLA_Input[[#This Row],[Benchmark PM EF g/kWh]]*GLA_Input[[#This Row],[Estimated usage (hrs)]]*GLA_Input[[#This Row],[Power rating (kW)]]/1000 -> 0.36825 | Q33: =IF(GLA_Input[[#This Row],[Power rating (kW)]]<Lists!$F$8,Lists!$E$8, IF(GLA_Input[[#This Row],[Power rating (kW)]]<Lists!$F$9,Lists!$E$9, IF(GLA_Input[[#This Row],[Power rating (kW)]]<Lists!$F$10,Lists!$E$10, IF(GLA_Input[[#This Row],[Power rating (kW)]]<Lists!$F$11,Lists!$E$11, IF(GLA_Input[[#This Row],[Power rating (kW)]]<Lists!$F$12,Lists!$E$12, IF(GLA_Input[[#This Row],[Power rating (kW)]]<Lists!$F$13,Lists!$E$13, IF(GLA_Input[[#This Row],[Power rating (kW)]]<Lists!$F$14,Lists!$E$14,Lists!$E$15))))))) -> 75≤ kW <130 | R33: =IF(OR(GLA_Input[[#This Row],[Resultant EU Stage]]="n/a",GLA_Input[[#This Row],[Resultant EU Stage]]=""),GLA_Input[[#This Row],[EU Stage]],GLA_Input[[#This Row],[Resultant EU Stage]]) -> EU Stage IV | S33: =SUMIFS('Emission Factors'!$K:$K,'Emission Factors'!$I:$I,GLA_Input[[#This Row],[Power rating range]],'Emission Factors'!$J:$J,GLA_Input[[#This Row],[Project EU Stage]]) -> 0.4032 | T33: =SUMIFS('Emission Factors'!$L:$L,'Emission Factors'!$I:$I,GLA_Input[[#This Row],[Power rating range]],'Emission Factors'!$J:$J,GLA_Input[[#This Row],[Project EU Stage]]) -> 0.036825 | U33: ='Emission Factors'!$P$10 -> 10 | V33: ='Emission Factors'!$R$10 -> 0.07 | W33: =(1-(((0.0301*GLA_Input[[#This Row],[Power rating (kW)]])+16.208)/100))*GLA_Input[[#This Row],[Project Diesel NOx emission factor g/kWh]] -> 0.325713024 | X33: =(1-(((0.0301*GLA_Input[[#This Row],[Power rating (kW)]])+16.208)/100))*GLA_Input[[#This Row],[Project Diesel PM emission factor g/kWh]] -> 0.0297479715 | Y33: =GLA_Input[[#This Row],[Project Diesel NOx emission factor g/kWh]]*'Emission Factors'!$Q$11 -> 0.411264 | Z33: =GLA_Input[[#This Row],[Project Diesel PM emission factor g/kWh]]*'Emission Factors'!$S$11 -> 0.0331425 | AA33: =SUMIFS('Emission Factors'!$K:$K,'Emission Factors'!$I:$I,GLA_Input[[#This Row],[Power rating range]],'Emission Factors'!$J:$J,GLA_Input[[#This Row],[Benchmark assumed EU stage]]) -> 2.99376 | AB33: =SUMIFS('Emission Factors'!$L:$L,'Emission Factors'!$I:$I,GLA_Input[[#This Row],[Power rating range]],'Emission Factors'!$J:$J,GLA_Input[[#This Row],[Benchmark assumed EU stage]]) -> 0.036825
A34: 4 | B34: 6) Fit-out, testing and commissioning | C34: Cleaning equipment | D34: 100 | E34: 10 | F34: Hybrid | G34: EU Stage V | I34: n/a | J34: =IF(MATCH(GLA_Input[[#This Row],[Project assumed EU stage]],Lists!$C$8:$C$14,0)>=MATCH(GLA_Input[[#This Row],[Benchmark assumed EU stage]],Lists!$C$8:$C$14,0),"Compliant","Non-compliant") -> Compliant | K34: =IF(OR(GLA_Input[[#This Row],[Resultant EU Stage]]="n/a",GLA_Input[[#This Row],[Resultant EU Stage]]="",GLA_Input[[#This Row],[Resultant EU Stage]]=0),GLA_Input[[#This Row],[EU Stage]],GLA_Input[[#This Row],[Resultant EU Stage]]) -> EU Stage V | L34: =IF(GLA_Input[[#This Row],[Technology/ fuel type]]=Lists!$N$8,GLA_Input[[#This Row],[Project Diesel NOx emission factor g/kWh]],IF(GLA_Input[[#This Row],[Technology/ fuel type]]=Lists!$N$9,GLA_Input[[#This Row],[Project LPG NOx EF g/kWh]],IF(GLA_Input[[#This Row],[Technology/ fuel type]]=Lists!$N$10,GLA_Input[[#This Row],[Project Biodiesel NOx EF g/kWh]],IF(GLA_Input[[#This Row],[Technology/ fuel type]]=Lists!$N$11,GLA_Input[[#This Row],[Project Hybrid NOx EF g/kWh]],0))))*GLA_Input[[#This Row],[Estimated usage (hrs)]]*GLA_Input[[#This Row],[Power rating (kW)]]/1000 -> 5.116862822 | M34: =IF(GLA_Input[[#This Row],[Technology/ fuel type]]=Lists!$N$8,GLA_Input[[#This Row],[Project Diesel PM emission factor g/kWh]],IF(GLA_Input[[#This Row],[Technology/ fuel type]]=Lists!$N$9,GLA_Input[[#This Row],[Project LPG PM EF g/kWh]],IF(GLA_Input[[#This Row],[Technology/ fuel type]]=Lists!$N$10,GLA_Input[[#This Row],[Project Biodiesel PM EF g/kWh]],IF(GLA_Input[[#This Row],[Technology/ fuel type]]=Lists!$N$11,GLA_Input[[#This Row],[Project Hybrid PM EF g/kWh]],0))))*GLA_Input[[#This Row],[Estimated usage (hrs)]]*GLA_Input[[#This Row],[Power rating (kW)]]/1000 -> 0.491928972 | N34: =IF(GLA_Input[[#This Row],[Estimated usage (hrs)]]=0,"",IFERROR(IF(GLA_Input[[#This Row],[Equipment type]]=Lists!$A$31,'GLA NRMM Policy'!$B$11,IF('GLA Compliance'!$H$28<'GLA NRMM Policy'!$C$6,VLOOKUP('GLA Compliance'!$E$28,'GLA NRMM Policy'!$A$7:$B$9,2,0), IF('GLA Compliance'!$H$28<'GLA NRMM Policy'!$D$6,'GLA NRMM Policy'!$C$7, IF('GLA Compliance'!$H$28<'GLA NRMM Policy'!$E$6,'GLA NRMM Policy'!$D$7,'GLA NRMM Policy'!$E$7)))),"")) -> EU Stage IIIB | O34: =GLA_Input[[#This Row],[Benchmark NOx EF g/kWh]]*GLA_Input[[#This Row],[Estimated usage (hrs)]]*GLA_Input[[#This Row],[Power rating (kW)]]/1000 -> 11.2896 | P34: =GLA_Input[[#This Row],[Benchmark PM EF g/kWh]]*GLA_Input[[#This Row],[Estimated usage (hrs)]]*GLA_Input[[#This Row],[Power rating (kW)]]/1000 -> 2.3568 | Q34: =IF(GLA_Input[[#This Row],[Power rating (kW)]]<Lists!$F$8,Lists!$E$8, IF(GLA_Input[[#This Row],[Power rating (kW)]]<Lists!$F$9,Lists!$E$9, IF(GLA_Input[[#This Row],[Power rating (kW)]]<Lists!$F$10,Lists!$E$10, IF(GLA_Input[[#This Row],[Power rating (kW)]]<Lists!$F$11,Lists!$E$11, IF(GLA_Input[[#This Row],[Power rating (kW)]]<Lists!$F$12,Lists!$E$12, IF(GLA_Input[[#This Row],[Power rating (kW)]]<Lists!$F$13,Lists!$E$13, IF(GLA_Input[[#This Row],[Power rating (kW)]]<Lists!$F$14,Lists!$E$14,Lists!$E$15))))))) -> 8≤ kW <19 | R34: =IF(OR(GLA_Input[[#This Row],[Resultant EU Stage]]="n/a",GLA_Input[[#This Row],[Resultant EU Stage]]=""),GLA_Input[[#This Row],[EU Stage]],GLA_Input[[#This Row],[Resultant EU Stage]]) -> EU Stage V | S34: =SUMIFS('Emission Factors'!$K:$K,'Emission Factors'!$I:$I,GLA_Input[[#This Row],[Power rating range]],'Emission Factors'!$J:$J,GLA_Input[[#This Row],[Project EU Stage]]) -> 6.12864 | T34: =SUMIFS('Emission Factors'!$L:$L,'Emission Factors'!$I:$I,GLA_Input[[#This Row],[Power rating range]],'Emission Factors'!$J:$J,GLA_Input[[#This Row],[Project EU Stage]]) -> 0.5892 | U34: ='Emission Factors'!$P$10 -> 10 | V34: ='Emission Factors'!$R$10 -> 0.07 | W34: =(1-(((0.0301*GLA_Input[[#This Row],[Power rating (kW)]])+16.208)/100))*GLA_Input[[#This Row],[Project Diesel NOx emission factor g/kWh]] -> 5.116862822 | X34: =(1-(((0.0301*GLA_Input[[#This Row],[Power rating (kW)]])+16.208)/100))*GLA_Input[[#This Row],[Project Diesel PM emission factor g/kWh]] -> 0.491928972 | Y34: =GLA_Input[[#This Row],[Project Diesel NOx emission factor g/kWh]]*'Emission Factors'!$Q$11 -> 6.2512128 | Z34: =GLA_Input[[#This Row],[Project Diesel PM emission factor g/kWh]]*'Emission Factors'!$S$11 -> 0.53028 | AA34: =SUMIFS('Emission Factors'!$K:$K,'Emission Factors'!$I:$I,GLA_Input[[#This Row],[Power rating range]],'Emission Factors'!$J:$J,GLA_Input[[#This Row],[Benchmark assumed EU stage]]) -> 11.2896 | AB34: =SUMIFS('Emission Factors'!$L:$L,'Emission Factors'!$I:$I,GLA_Input[[#This Row],[Power rating range]],'Emission Factors'!$J:$J,GLA_Input[[#This Row],[Benchmark assumed EU stage]]) -> 2.3568

Sheet Carbon Compliance (hidden)
A3: Sum of Project carbon (kg) | B3: Sum of Benchmark carbon (kg)
A4: 20785.73557 | B4: 21964.18938

Sheet Carbon Breakdown
D2: Carbon Breakdown
A27: Input | G27: Construction year: | J27: Output
C28: GLA NRMM policy area: | E28: Other areas of Greater London | H28: 2023
A30: Unique ID | B30: Construction Phase | C30: Equipment type | D30: Estimated usage (hrs) | E30: Power rating (kW) | F30: Technology/ fuel type | G30: EU Stage | H30: Abatement technology | I30: Resultant EU Stage | J30: Compliance check | K30: Project assumed EU stage | L30: Project carbon (kg) | M30: Benchmark assumed EU stage | N30: Benchmark carbon (kg) | O30: Power rating range | P30: Project EU Stage | Q30: Project Fuel factor g/kWh | R30: Project fuel use g | S30: Diesel Project Carbon factor kg CO2 per g fuel | T30: Diesel Project Carbon emissions kg | U30: LPG Project CO2 emissions kg | V30: Hybrid Project fuel use g | W30: Hybrid Project Carbon emissions kg | X30: Biodiesel Project Carbon factor kg CO2 per g fuel | Y30: Biodiesel Project Carbon emissions kg | Z30: Electric /battery Project Carbon emissions kg | AA30: Benchmark fuel factor g/kWh | AB30: Benchmark fuel use g | AC30: Benchmark Carbon factor kg CO2 per g fuel
A31: 1 | B31: 1) Site setup and demolition | C31: Constant speed engine (e.g. Generator) | D31: 100 | E31: 72 | F31: Hybrid | G31: EU Stage V | H31: =GLA_Input[[#This Row],[Abatement technology]] -> 0 | I31: =GLA_Input[[#This Row],[Resultant EU Stage]] -> n/a | J31: =IF(MATCH(Carbon[[#This Row],[Project assumed EU stage]],Lists!$C$8:$C$14,0)>=MATCH(Carbon[[#This Row],[Benchmark assumed EU stage]],Lists!$C$8:$C$14,0),"Compliant","Non-compliant") -> Compliant | K31: =IF(OR(Carbon[[#This Row],[Resultant EU Stage]]="n/a",Carbon[[#This Row],[Resultant EU Stage]]="",Carbon[[#This Row],[Resultant EU Stage]]=0),Carbon[[#This Row],[EU Stage]],Carbon[[#This Row],[Resultant EU Stage]]) -> EU Stage V | L31: =IF(F31=Lists!$N$8,Carbon[[#This Row],[Diesel Project Carbon emissions kg]],IF(F31=Lists!$N$9,Carbon[[#This Row],[LPG Project CO2 emissions kg]],IF(F31=Lists!$N$10,Carbon[[#This Row],[Biodiesel Project Carbon emissions kg]],IF(F31=Lists!$N$11,Carbon[[#This Row],[Hybrid Project Carbon emissions kg]],Carbon[[#This Row],[Electric /battery Project Carbon emissions kg]])))) -> 4634.305223 | M31: =IF(Carbon[[#This Row],[Estimated usage (hrs)]]=0,"",IFERROR(IF(Carbon[[#This Row],[Equipment type]]=Lists!$A$31,'GLA NRMM Policy'!$B$11,IF($H$28<'GLA NRMM Policy'!$C$6,VLOOKUP($E$28,'GLA NRMM Policy'!$A$7:$B$9,2,0), IF($H$28<'GLA NRMM Policy'!$D$6,'GLA NRMM Policy'!$C$7, IF($H$28<'GLA NRMM Policy'!$E$6,'GLA NRMM Policy'!$D$7,'GLA NRMM Policy'!$E$7)))),"")) -> EU Stage V | N31: =Carbon[[#This Row],[Benchmark fuel use g]]*Carbon[[#This Row],[Benchmark Carbon factor kg CO2 per g fuel]] -> 5677.57008 | O31: =IF(Carbon[[#This Row],[Power rating (kW)]]<Lists!$F$8,Lists!$E$8, IF(Carbon[[#This Row],[Power rating (kW)]]<Lists!$F$9,Lists!$E$9, IF(Carbon[[#This Row],[Power rating (kW)]]<Lists!$F$10,Lists!$E$10, IF(Carbon[[#This Row],[Power rating (kW)]]<Lists!$F$11,Lists!$E$11, IF(Carbon[[#This Row],[Power rating (kW)]]<Lists!$F$12,Lists!$E$12, IF(Carbon[[#This Row],[Power rating (kW)]]<Lists!$F$13,Lists!$E$13, IF(Carbon[[#This Row],[Power rating (kW)]]<Lists!$F$14,Lists!$E$14,Lists!$E$15))))))) -> 56≤ kW <75 | P31: =IF(OR(Carbon[[#This Row],[Resultant EU Stage]]="n/a",Carbon[[#This Row],[Resultant EU Stage]]=""),Carbon[[#This Row],[EU Stage]],Carbon[[#This Row],[Resultant EU Stage]]) -> EU Stage V | Q31: =SUMIFS('Emission Factors'!$M:$M,'Emission Factors'!$I:$I,Carbon[[#This Row],[Power rating range]],'Emission Factors'!$J:$J,Carbon[[#This Row],[EU Stage]]) -> 260 | R31: =Carbon[[#This Row],[Project Fuel factor g/kWh]]*Carbon[[#This Row],[Power rating (kW)]]*Carbon[[#This Row],[Estimated usage (hrs)]] -> 1872000 | S31: ='Emission Factors'!$W$9 -> 0.00303289 | T31: =Carbon[[#This Row],[Diesel Project Carbon factor kg CO2 per g fuel]]*Carbon[[#This Row],[Project fuel use g]] -> 5677.57008 | U31: =Carbon[[#This Row],[Power rating (kW)]]*'Emission Factors'!$X$10*Carbon[[#This Row],[Estimated usage (hrs)]] -> 1658.232 | V31: =(1-(((0.0301*Carbon[[#This Row],[Power rating (kW)]])+16.208)/100))*Carbon[[#This Row],[Project fuel use g]] -> 1528016.256 | W31: =Carbon[[#This Row],[Hybrid Project fuel use g]]*Carbon[[#This Row],[Diesel Project Carbon factor kg CO2 per g fuel]] -> 4634.305223 | X31: ='Emission Factors'!$W$11 -> 4.562e-05 | Y31: =Carbon[[#This Row],[Biodiesel Project Carbon factor kg CO2 per g fuel]]*Carbon[[#This Row],[Project fuel use g]] -> 85.40064 | Z31: ='Emission Factors'!$X$13*Carbon[[#This Row],[Estimated usage (hrs)]]*Carbon[[#This Row],[Power rating (kW)]] -> 1392.336 | AA31: =SUMIFS('Emission Factors'!$M:$M,'Emission Factors'!$I:$I,Carbon[[#This Row],[Power rating range]],'Emission Factors'!$J:$J,Carbon[[#This Row],[Benchmark assumed EU stage]]) -> 260 | AB31: =Carbon[[#This Row],[Benchmark fuel factor g/kWh]]*Carbon[[#This Row],[Estimated usage (hrs)]]*Carbon[[#This Row],[Power rating (kW)]] -> 1872000 | AC31: ='Emission Factors'!$W$9 -> 0.00303289
A32: 2 | B32: 3) Sub-structure | C32: Excavator | D32: 100 | E32: 100 | F32: Diesel | G32: EU Stage IV | H32: =GLA_Input[[#This Row],[Abatement technology]] -> 0 | I32: =GLA_Input[[#This Row],[Resultant EU Stage]] -> n/a | J32: =IF(MATCH(Carbon[[#This Row],[Project assumed EU stage]],Lists!$C$8:$C$14,0)>=MATCH(Carbon[[#This Row],[Benchmark assumed EU stage]],Lists!$C$8:$C$14,0),"Compliant","Non-compliant") -> Compliant | K32: =IF(OR(Carbon[[#This Row],[Resultant EU Stage]]="n/a",Carbon[[#This Row],[Resultant EU Stage]]="",Carbon[[#This Row],[Resultant EU Stage]]=0),Carbon[[#This Row],[EU Stage]],Carbon[[#This Row],[Resultant EU Stage]]) -> EU Stage IV | L32: =IF(F32=Lists!$N$8,Carbon[[#This Row],[Diesel Project Carbon emissions kg]],IF(F32=Lists!$N$9,Carbon[[#This Row],[LPG Project CO2 emissions kg]],IF(F32=Lists!$N$10,Carbon[[#This Row],[Biodiesel Project Carbon emissions kg]],IF(F32=Lists!$N$11,Carbon[[#This Row],[Hybrid Project Carbon emissions kg]],Carbon[[#This Row],[Electric /battery Project Carbon emissions kg]])))) -> 7733.8695 | M32: =IF(Carbon[[#This Row],[Estimated usage (hrs)]]=0,"",IFERROR(IF(Carbon[[#This Row],[Equipment type]]=Lists!$A$31,'GLA NRMM Policy'!$B$11,IF($H$28<'GLA NRMM Policy'!$C$6,VLOOKUP($E$28,'GLA NRMM Policy'!$A$7:$B$9,2,0), IF($H$28<'GLA NRMM Policy'!$D$6,'GLA NRMM Policy'!$C$7, IF($H$28<'GLA NRMM Policy'!$E$6,'GLA NRMM Policy'!$D$7,'GLA NRMM Policy'!$E$7)))),"")) -> EU Stage IIIB | N32: =Carbon[[#This Row],[Benchmark fuel use g]]*Carbon[[#This Row],[Benchmark Carbon factor kg CO2 per g fuel]] -> 7733.8695 | O32: =IF(Carbon[[#This Row],[Power rating (kW)]]<Lists!$F$8,Lists!$E$8, IF(Carbon[[#This Row],[Power rating (kW)]]<Lists!$F$9,Lists!$E$9, IF(Carbon[[#This Row],[Power rating (kW)]]<Lists!$F$10,Lists!$E$10, IF(Carbon[[#This Row],[Power rating (kW)]]<Lists!$F$11,Lists!$E$11, IF(Carbon[[#This Row],[Power rating (kW)]]<Lists!$F$12,Lists!$E$12, IF(Carbon[[#This Row],[Power rating (kW)]]<Lists!$F$13,Lists!$E$13, IF(Carbon[[#This Row],[Power rating (kW)]]<Lists!$F$14,Lists!$E$14,Lists!$E$15))))))) -> 75≤ kW <130 | P32: =IF(OR(Carbon[[#This Row],[Resultant EU Stage]]="n/a",Carbon[[#This Row],[Resultant EU Stage]]=""),Carbon[[#This Row],[EU Stage]],Carbon[[#This Row],[Resultant EU Stage]]) -> EU Stage IV | Q32: =SUMIFS('Emission Factors'!$M:$M,'Emission Factors'!$I:$I,Carbon[[#This Row],[Power rating range]],'Emission Factors'!$J:$J,Carbon[[#This Row],[EU Stage]]) -> 255 | R32: =Carbon[[#This Row],[Project Fuel factor g/kWh]]*Carbon[[#This Row],[Power rating (kW)]]*Carbon[[#This Row],[Estimated usage (hrs)]] -> 2550000 | S32: ='Emission Factors'!$W$9 -> 0.00303289 | T32: =Carbon[[#This Row],[Diesel Project Carbon factor kg CO2 per g fuel]]*Carbon[[#This Row],[Project fuel use g]] -> 7733.8695 | U32: =Carbon[[#This Row],[Power rating (kW)]]*'Emission Factors'!$X$10*Carbon[[#This Row],[Estimated usage (hrs)]] -> 2303.1 | V32: =(1-(((0.0301*Carbon[[#This Row],[Power rating (kW)]])+16.208)/100))*Carbon[[#This Row],[Project fuel use g]] -> 2059941 | W32: =Carbon[[#This Row],[Hybrid Project fuel use g]]*Carbon[[#This Row],[Diesel Project Carbon factor kg CO2 per g fuel]] -> 6247.574459 | X32: ='Emission Factors'!$W$11 -> 4.562e-05 | Y32: =Carbon[[#This Row],[Biodiesel Project Carbon factor kg CO2 per g fuel]]*Carbon[[#This Row],[Project fuel use g]] -> 116.331 | Z32: ='Emission Factors'!$X$13*Carbon[[#This Row],[Estimated usage (hrs)]]*Carbon[[#This Row],[Power rating (kW)]] -> 1933.8 | AA32: =SUMIFS('Emission Factors'!$M:$M,'Emission Factors'!$I:$I,Carbon[[#This Row],[Power rating range]],'Emission Factors'!$J:$J,Carbon[[#This Row],[Benchmark assumed EU stage]]) -> 255 | AB32: =Carbon[[#This Row],[Benchmark fuel factor g/kWh]]*Carbon[[#This Row],[Estimated usage (hrs)]]*Carbon[[#This Row],[Power rating (kW)]] -> 2550000 | AC32: ='Emission Factors'!$W$9 -> 0.00303289
A33: 3 | B33: 5) Cladding | C33: Telehandler | D33: 100 | E33: 100 | F33: Diesel | G33: EU Stage IV | H33: =GLA_Input[[#This Row],[Abatement technology]] -> 0 | I33: =GLA_Input[[#This Row],[Resultant EU Stage]] -> n/a | J33: =IF(MATCH(Carbon[[#This Row],[Project assumed EU stage]],Lists!$C$8:$C$14,0)>=MATCH(Carbon[[#This Row],[Benchmark assumed EU stage]],Lists!$C$8:$C$14,0),"Compliant","Non-compliant") -> Compliant | K33: =IF(OR(Carbon[[#This Row],[Resultant EU Stage]]="n/a",Carbon[[#This Row],[Resultant EU Stage]]="",Carbon[[#This Row],[Resultant EU Stage]]=0),Carbon[[#This Row],[EU Stage]],Carbon[[#This Row],[Resultant EU Stage]]) -> EU Stage IV | L33: =IF(F33=Lists!$N$8,Carbon[[#This Row],[Diesel Project Carbon emissions kg]],IF(F33=Lists!$N$9,Carbon[[#This Row],[LPG Project CO2 emissions kg]],IF(F33=Lists!$N$10,Carbon[[#This Row],[Biodiesel Project Carbon emissions kg]],IF(F33=Lists!$N$11,Carbon[[#This Row],[Hybrid Project Carbon emissions kg]],Carbon[[#This Row],[Electric /battery Project Carbon emissions kg]])))) -> 7733.8695 | M33: =IF(Carbon[[#This Row],[Estimated usage (hrs)]]=0,"",IFERROR(IF(Carbon[[#This Row],[Equipment type]]=Lists!$A$31,'GLA NRMM Policy'!$B$11,IF($H$28<'GLA NRMM Policy'!$C$6,VLOOKUP($E$28,'GLA NRMM Policy'!$A$7:$B$9,2,0), IF($H$28<'GLA NRMM Policy'!$D$6,'GLA NRMM Policy'!$C$7, IF($H$28<'GLA NRMM Policy'!$E$6,'GLA NRMM Policy'!$D$7,'GLA NRMM Policy'!$E$7)))),"")) -> EU Stage IIIB | N33: =Carbon[[#This Row],[Benchmark fuel use g]]*Carbon[[#This Row],[Benchmark Carbon factor kg CO2 per g fuel]] -> 7733.8695 | O33: =IF(Carbon[[#This Row],[Power rating (kW)]]<Lists!$F$8,Lists!$E$8, IF(Carbon[[#This Row],[Power rating (kW)]]<Lists!$F$9,Lists!$E$9, IF(Carbon[[#This Row],[Power rating (kW)]]<Lists!$F$10,Lists!$E$10, IF(Carbon[[#This Row],[Power rating (kW)]]<Lists!$F$11,Lists!$E$11, IF(Carbon[[#This Row],[Power rating (kW)]]<Lists!$F$12,Lists!$E$12, IF(Carbon[[#This Row],[Power rating (kW)]]<Lists!$F$13,Lists!$E$13, IF(Carbon[[#This Row],[Power rating (kW)]]<Lists!$F$14,Lists!$E$14,Lists!$E$15))))))) -> 75≤ kW <130 | P33: =IF(OR(Carbon[[#This Row],[Resultant EU Stage]]="n/a",Carbon[[#This Row],[Resultant EU Stage]]=""),Carbon[[#This Row],[EU Stage]],Carbon[[#This Row],[Resultant EU Stage]]) -> EU Stage IV | Q33: =SUMIFS('Emission Factors'!$M:$M,'Emission Factors'!$I:$I,Carbon[[#This Row],[Power rating range]],'Emission Factors'!$J:$J,Carbon[[#This Row],[EU Stage]]) -> 255 | R33: =Carbon[[#This Row],[Project Fuel factor g/kWh]]*Carbon[[#This Row],[Power rating (kW)]]*Carbon[[#This Row],[Estimated usage (hrs)]] -> 2550000 | S33: ='Emission Factors'!$W$9 -> 0.00303289 | T33: =Carbon[[#This Row],[Diesel Project Carbon factor kg CO2 per g fuel]]*Carbon[[#This Row],[Project fuel use g]] -> 7733.8695 | U33: =Carbon[[#This Row],[Power rating (kW)]]*'Emission Factors'!$X$10*Carbon[[#This Row],[Estimated usage (hrs)]] -> 2303.1 | V33: =(1-(((0.0301*Carbon[[#This Row],[Power rating (kW)]])+16.208)/100))*Carbon[[#This Row],[Project fuel use g]] -> 2059941 | W33: =Carbon[[#This Row],[Hybrid Project fuel use g]]*Carbon[[#This Row],[Diesel Project Carbon factor kg CO2 per g fuel]] -> 6247.574459 | X33: ='Emission Factors'!$W$11 -> 4.562e-05 | Y33: =Carbon[[#This Row],[Biodiesel Project Carbon factor kg CO2 per g fuel]]*Carbon[[#This Row],[Project fuel use g]] -> 116.331 | Z33: ='Emission Factors'!$X$13*Carbon[[#This Row],[Estimated usage (hrs)]]*Carbon[[#This Row],[Power rating (kW)]] -> 1933.8 | AA33: =SUMIFS('Emission Factors'!$M:$M,'Emission Factors'!$I:$I,Carbon[[#This Row],[Power rating range]],'Emission Factors'!$J:$J,Carbon[[#This Row],[Benchmark assumed EU stage]]) -> 255 | AB33: =Carbon[[#This Row],[Benchmark fuel factor g/kWh]]*Carbon[[#This Row],[Estimated usage (hrs)]]*Carbon[[#This Row],[Power rating (kW)]] -> 2550000 | AC33: ='Emission Factors'!$W$9 -> 0.00303289
A34: 4 | B34: 6) Fit-out, testing and commissioning | C34: Cleaning equipment | D34: 100 | E34: 10 | F34: Hybrid | G34: EU Stage V | H34: =GLA_Input[[#This Row],[Abatement technology]] -> 0 | I34: =GLA_Input[[#This Row],[Resultant EU Stage]] -> n/a | J34: =IF(MATCH(Carbon[[#This Row],[Project assumed EU stage]],Lists!$C$8:$C$14,0)>=MATCH(Carbon[[#This Row],[Benchmark assumed EU stage]],Lists!$C$8:$C$14,0),"Compliant","Non-compliant") -> Compliant | K34: =IF(OR(Carbon[[#This Row],[Resultant EU Stage]]="n/a",Carbon[[#This Row],[Resultant EU Stage]]="",Carbon[[#This Row],[Resultant EU Stage]]=0),Carbon[[#This Row],[EU Stage]],Carbon[[#This Row],[Resultant EU Stage]]) -> EU Stage V | L34: =IF(F34=Lists!$N$8,Carbon[[#This Row],[Diesel Project Carbon emissions kg]],IF(F34=Lists!$N$9,Carbon[[#This Row],[LPG Project CO2 emissions kg]],IF(F34=Lists!$N$10,Carbon[[#This Row],[Biodiesel Project Carbon emissions kg]],IF(F34=Lists!$N$11,Carbon[[#This Row],[Hybrid Project Carbon emissions kg]],Carbon[[#This Row],[Electric /battery Project Carbon emissions kg]])))) -> 683.6913513 | M34: =IF(Carbon[[#This Row],[Estimated usage (hrs)]]=0,"",IFERROR(IF(Carbon[[#This Row],[Equipment type]]=Lists!$A$31,'GLA NRMM Policy'!$B$11,IF($H$28<'GLA NRMM Policy'!$C$6,VLOOKUP($E$28,'GLA NRMM Policy'!$A$7:$B$9,2,0), IF($H$28<'GLA NRMM Policy'!$D$6,'GLA NRMM Policy'!$C$7, IF($H$28<'GLA NRMM Policy'!$E$6,'GLA NRMM Policy'!$D$7,'GLA NRMM Policy'!$E$7)))),"")) -> EU Stage IIIB | N34: =Carbon[[#This Row],[Benchmark fuel use g]]*Carbon[[#This Row],[Benchmark Carbon factor kg CO2 per g fuel]] -> 818.8803 | O34: =IF(Carbon[[#This Row],[Power rating (kW)]]<Lists!$F$8,Lists!$E$8, IF(Carbon[[#This Row],[Power rating (kW)]]<Lists!$F$9,Lists!$E$9, IF(Carbon[[#This Row],[Power rating (kW)]]<Lists!$F$10,Lists!$E$10, IF(Carbon[[#This Row],[Power rating (kW)]]<Lists!$F$11,Lists!$E$11, IF(Carbon[[#This Row],[Power rating (kW)]]<Lists!$F$12,Lists!$E$12, IF(Carbon[[#This Row],[Power rating (kW)]]<Lists!$F$13,Lists!$E$13, IF(Carbon[[#This Row],[Power rating (kW)]]<Lists!$F$14,Lists!$E$14,Lists!$E$15))))))) -> 8≤ kW <19 | P34: =IF(OR(Carbon[[#This Row],[Resultant EU Stage]]="n/a",Carbon[[#This Row],[Resultant EU Stage]]=""),Carbon[[#This Row],[EU Stage]],Carbon[[#This Row],[Resultant EU Stage]]) -> EU Stage V | Q34: =SUMIFS('Emission Factors'!$M:$M,'Emission Factors'!$I:$I,Carbon[[#This Row],[Power rating range]],'Emission Factors'!$J:$J,Carbon[[#This Row],[EU Stage]]) -> 270 | R34: =Carbon[[#This Row],[Project Fuel factor g/kWh]]*Carbon[[#This Row],[Power rating (kW)]]*Carbon[[#This Row],[Estimated usage (hrs)]] -> 270000 | S34: ='Emission Factors'!$W$9 -> 0.00303289 | T34: =Carbon[[#This Row],[Diesel Project Carbon factor kg CO2 per g fuel]]*Carbon[[#This Row],[Project fuel use g]] -> 818.8803 | U34: =Carbon[[#This Row],[Power rating (kW)]]*'Emission Factors'!$X$10*Carbon[[#This Row],[Estimated usage (hrs)]] -> 230.31 | V34: =(1-(((0.0301*Carbon[[#This Row],[Power rating (kW)]])+16.208)/100))*Carbon[[#This Row],[Project fuel use g]] -> 225425.7 | W34: =Carbon[[#This Row],[Hybrid Project fuel use g]]*Carbon[[#This Row],[Diesel Project Carbon factor kg CO2 per g fuel]] -> 683.6913513 | X34: ='Emission Factors'!$W$11 -> 4.562e-05 | Y34: =Carbon[[#This Row],[Biodiesel Project Carbon factor kg CO2 per g fuel]]*Carbon[[#This Row],[Project fuel use g]] -> 12.3174 | Z34: ='Emission Factors'!$X$13*Carbon[[#This Row],[Estimated usage (hrs)]]*Carbon[[#This Row],[Power rating (kW)]] -> 193.38 | AA34: =SUMIFS('Emission Factors'!$M:$M,'Emission Factors'!$I:$I,Carbon[[#This Row],[Power rating range]],'Emission Factors'!$J:$J,Carbon[[#This Row],[Benchmark assumed EU stage]]) -> 270 | AB34: =Carbon[[#This Row],[Benchmark fuel factor g/kWh]]*Carbon[[#This Row],[Estimated usage (hrs)]]*Carbon[[#This Row],[Power rating (kW)]] -> 270000 | AC34: ='Emission Factors'!$W$9 -> 0.00303289

Sheet Scenario Comparison
D2: Scenario comparison | H2: ='NOx comparison'!F4 -> NOx: Baseline 22% more than Alternative Scenario | K2: ='PM comparison'!F4 -> PM: Baseline 16% more than Alternative Scenario | N2: ='CO2 comparison'!F4 -> Carbon: Baseline 69% less than Alternative Scenario
M21: Alternative scenario
A22: Baseline | I22: % reduction | J22: 0 | K22: 0 | L22: 0 | S22: % reduction | T22: 0 | U22: 0 | V22: 0
A24: Unique ID | B24: Construction Phase | C24: Baseline equipment type | D24: Baseline estimated usage (hrs) | E24: Baseline power rating (kW) | F24: Baseline technology/ fuel type | G24: Baseline EU Stage | H24: Baseline abatement technology | I24: Baseline resultant EU Stage | J24: Baseline NOx kg | K24: Baseline PM kg | L24: Baseline Carbon kg | M24: Alternative scenario equipment type | N24: Alternative scenario estimated usage (hrs) | O24: Alternative scenario power rating (kW) | P24: Alternative scenario technology/ fuel type | Q24: Alternative scenario EU Stage | R24: Alternative scenario abatement technology | S24: Alternative scenario resultant EU Stage | T24: Alternative scenario NOx kg | U24: Alternative secenario PM kg | V24: Alternative scenario Carbon kg | W24: Power rating range A | X24: Power rating range B | Y24: Final EU Stage A | Z24: Final EU Stage B | AA24: A Diesel NOx emission factor g/kWh | AB24: A Diesel PM emission factor g/kWh | AC24: A LPG NOx EF g/kWh | AD24: A LPG PM EF g/kWh | AE24: A Hybrid NOx EF g/kWh | AF24: A Hybrid PM EF g/kWh | AG24: A Biodiesel NOx EF g/kWh | AH24: A Biodiesel PM EF g/kWh | AI24: B Diesel NOx emission factor g/kWh | AJ24: B Diesel PM emission factor g/kWh | AK24: B LPG NOx EF g/kWh | AL24: B LPG PM EF g/kWh | AM24: B Hybrid NOx EF g/kWh | AN24: B Hybrid PM EF g/kWh | AO24: B Biodiesel NOx EF g/kWh | AP24: B Biodiesel PM EF g/kWh | AQ24: A Fuel factor g/kWh | AR24: A fuel use g | AS24: A Diesel Carbon factor kg CO2 per g fuel | AT24: A Diesel Carbon emissions kg | AU24: A LPG CO2 emissions kg | AV24: A Hybrid fuel use g | AW24: A Hybrid Carbon emissions kg | AX24: A Biodiesel Carbon factor kg CO2 per g fuel | AY24: A Biodiesel Carbon emissions kg | AZ24: A Electric /battery Carbon emissions kg | BA24: B Fuel factor g/kWh | BB24: B fuel use g | BC24: B Diesel Carbon factor kg CO2 per g fuel | BD24: B Diesel Carbon emissions kg | BE24: B LPG CO2 emissions kg | BF24: B Hybrid fuel use g | BG24: B Hybrid Carbon emissions kg | BH24: B Biodiesel Carbon factor kg CO2 per g fuel | BI24: B Biodiesel Carbon emissions kg | BJ24: B Electric /battery Carbon emissions kg
A25: 1 | B25: 1) Site setup and demolition | C25: Crusher | D25: 100 | E25: 100 | F25: Diesel | G25: EU Stage IV | I25: n/a | J25: =IF(Scenarios[[#This Row],[Baseline technology/ fuel type]]=Lists!$N$8,Scenarios[[#This Row],[A Diesel NOx emission factor g/kWh]],IF(Scenarios[[#This Row],[Baseline technology/ fuel type]]=Lists!$N$9,Scenarios[[#This Row],[A LPG NOx EF g/kWh]],IF(Scenarios[[#This Row],[Baseline technology/ fuel type]]=Lists!$N$10,Scenarios[[#This Row],[A Biodiesel NOx EF g/kWh]],IF(Scenarios[[#This Row],[Baseline technology/ fuel type]]=Lists!$N$11,Scenarios[[#This Row],[A Hybrid NOx EF g/kWh]],0))))*Scenarios[[#This Row],[Baseline estimated usage (hrs)]]*Scenarios[[#This Row],[Baseline power rating (kW)]]/1000*(1-$J$22) -> 4.032 | K25: =IF(Scenarios[[#This Row],[Baseline technology/ fuel type]]=Lists!$N$8,Scenarios[[#This Row],[A Diesel PM emission factor g/kWh]],IF(Scenarios[[#This Row],[Baseline technology/ fuel type]]=Lists!$N$9,Scenarios[[#This Row],[A LPG PM EF g/kWh]],IF(Scenarios[[#This Row],[Baseline technology/ fuel type]]=Lists!$N$10,Scenarios[[#This Row],[A Biodiesel PM EF g/kWh]],IF(Scenarios[[#This Row],[Baseline technology/ fuel type]]=Lists!$N$11,Scenarios[[#This Row],[A Hybrid PM EF g/kWh]],0))))*Scenarios[[#This Row],[Baseline estimated usage (hrs)]]*Scenarios[[#This Row],[Baseline power rating (kW)]]/1000*(1-$K$22) -> 0.36825 | L25: =IF(F31=Lists!$N$8,Scenarios[[#This Row],[A Diesel Carbon emissions kg]],IF(F31=Lists!$N$9,Scenarios[[#This Row],[A LPG CO2 emissions kg]],IF(F31=Lists!$N$10,Scenarios[[#This Row],[A Biodiesel Carbon emissions kg]],IF(F31=Lists!$N$11,Scenarios[[#This Row],[A Hybrid Carbon emissions kg]],Scenarios[[#This Row],[A Electric /battery Carbon emissions kg]]))))*(1-$L$22) -> 1933.8 | M25: Crusher | N25: 100 | O25: 100 | P25: Hybrid | Q25: EU Stage IV | S25: n/a | T25: =IF(Scenarios[[#This Row],[Alternative scenario technology/ fuel type]]=Lists!$N$8,Scenarios[[#This Row],[B Diesel NOx emission factor g/kWh]],IF(Scenarios[[#This Row],[Alternative scenario technology/ fuel type]]=Lists!$N$9,Scenarios[[#This Row],[B LPG NOx EF g/kWh]],IF(Scenarios[[#This Row],[Alternative scenario technology/ fuel type]]=Lists!$N$10,Scenarios[[#This Row],[B Biodiesel NOx EF g/kWh]],IF(Scenarios[[#This Row],[Alternative scenario technology/ fuel type]]=Lists!$N$11,Scenarios[[#This Row],[B Hybrid NOx EF g/kWh]],0))))*Scenarios[[#This Row],[Alternative scenario estimated usage (hrs)]]*Scenarios[[#This Row],[Alternative scenario power rating (kW)]]/1000*(1-$T$22) -> 3.25713024 | U25: =IF(Scenarios[[#This Row],[Alternative scenario technology/ fuel type]]=Lists!$N$8,Scenarios[[#This Row],[B Diesel PM emission factor g/kWh]],IF(Scenarios[[#This Row],[Alternative scenario technology/ fuel type]]=Lists!$N$9,Scenarios[[#This Row],[B LPG PM EF g/kWh]],IF(Scenarios[[#This Row],[Alternative scenario technology/ fuel type]]=Lists!$N$10,Scenarios[[#This Row],[B Biodiesel PM EF g/kWh]],IF(Scenarios[[#This Row],[Alternative scenario technology/ fuel type]]=Lists!$N$11,Scenarios[[#This Row],[B Hybrid PM EF g/kWh]],0))))*Scenarios[[#This Row],[Alternative scenario estimated usage (hrs)]]*Scenarios[[#This Row],[Alternative scenario power rating (kW)]]/1000*(1-$U$22) -> 0.297479715 | V25: =IF(Scenarios[[#This Row],[Alternative scenario technology/ fuel type]]=Lists!$N$8,Scenarios[[#This Row],[B Diesel Carbon emissions kg]],IF(Scenarios[[#This Row],[Alternative scenario technology/ fuel type]]=Lists!$N$9,Scenarios[[#This Row],[B LPG CO2 emissions kg]],IF(Scenarios[[#This Row],[Alternative scenario technology/ fuel type]]=Lists!$N$10,Scenarios[[#This Row],[B Biodiesel Carbon emissions kg]],IF(Scenarios[[#This Row],[Alternative scenario technology/ fuel type]]=Lists!$N$11,Scenarios[[#This Row],[B Hybrid Carbon emissions kg]],Scenarios[[#This Row],[B Electric /battery Carbon emissions kg]]))))*(1-$L$22) -> 6247.574459 | W25: =IF(Scenarios[[#This Row],[Baseline power rating (kW)]]<Lists!$F$8,Lists!$E$8, IF(Scenarios[[#This Row],[Baseline power rating (kW)]]<Lists!$F$9,Lists!$E$9, IF(Scenarios[[#This Row],[Baseline power rating (kW)]]<Lists!$F$10,Lists!$E$10, IF(Scenarios[[#This Row],[Baseline power rating (kW)]]<Lists!$F$11,Lists!$E$11, IF(Scenarios[[#This Row],[Baseline power rating (kW)]]<Lists!$F$12,Lists!$E$12, IF(Scenarios[[#This Row],[Baseline power rating (kW)]]<Lists!$F$13,Lists!$E$13, IF(Scenarios[[#This Row],[Baseline power rating (kW)]]<Lists!$F$14,Lists!$E$14,Lists!$E$15))))))) -> 75≤ kW <130 | X25: =IF(Scenarios[[#This Row],[Alternative scenario power rating (kW)]]<Lists!$F$8,Lists!$E$8, IF(Scenarios[[#This Row],[Alternative scenario power rating (kW)]]<Lists!$F$9,Lists!$E$9, IF(Scenarios[[#This Row],[Alternative scenario power rating (kW)]]<Lists!$F$10,Lists!$E$10, IF(Scenarios[[#This Row],[Alternative scenario power rating (kW)]]<Lists!$F$11,Lists!$E$11, IF(Scenarios[[#This Row],[Alternative scenario power rating (kW)]]<Lists!$F$12,Lists!$E$12, IF(Scenarios[[#This Row],[Alternative scenario power rating (kW)]]<Lists!$F$13,Lists!$E$13, IF(Scenarios[[#This Row],[Alternative scenario power rating (kW)]]<Lists!$F$14,Lists!$E$14,Lists!$E$15))))))) -> 75≤ kW <130 | Y25: =IF(OR(Scenarios[[#This Row],[Baseline resultant EU Stage]]="n/a",Scenarios[[#This Row],[Baseline resultant EU Stage]]=""),Scenarios[[#This Row],[Baseline EU Stage ]],Scenarios[[#This Row],[Baseline resultant EU Stage]]) -> EU Stage IV | Z25: =IF(OR(Scenarios[[#This Row],[Alternative scenario resultant EU Stage]]="n/a",Scenarios[[#This Row],[Alternative scenario resultant EU Stage]]=""),Scenarios[[#This Row],[Alternative scenario EU Stage]],Scenarios[[#This Row],[Alternative scenario resultant EU Stage]]) -> EU Stage IV | AA25: =SUMIFS('Emission Factors'!$K:$K,'Emission Factors'!$I:$I,Scenarios[[#This Row],[Power rating range A]],'Emission Factors'!$J:$J,Scenarios[[#This Row],[Baseline EU Stage ]]) -> 0.4032 | AB25: =SUMIFS('Emission Factors'!$L:$L,'Emission Factors'!$I:$I,Scenarios[[#This Row],[Power rating range A]],'Emission Factors'!$J:$J,Scenarios[[#This Row],[Baseline EU Stage ]]) -> 0.036825 | AC25: ='Emission Factors'!$P$10 -> 10 | AD25: ='Emission Factors'!$R$10 -> 0.07 | AE25: =(1-(((0.0301*Scenarios[[#This Row],[Baseline power rating (kW)]])+16.208)/100))*Scenarios[[#This Row],[A Diesel NOx emission factor g/kWh]] -> 0.325713024 | AF25: =(1-(((0.0301*Scenarios[[#This Row],[Baseline power rating (kW)]])+16.208)/100))*Scenarios[[#This Row],[A Diesel PM emission factor g/kWh]] -> 0.0297479715 | AG25: =Scenarios[[#This Row],[A Diesel NOx emission factor g/kWh]]*'Emission Factors'!$Q$11 -> 0.411264 | AH25: =Scenarios[[#This Row],[A Diesel PM emission factor g/kWh]]*'Emission Factors'!$S$11 -> 0.0331425 | AI25: =SUMIFS('Emission Factors'!$K:$K,'Emission Factors'!$I:$I,Scenarios[[#This Row],[Power rating range B]],'Emission Factors'!$J:$J,Scenarios[[#This Row],[Final EU Stage B]]) -> 0.4032 | AJ25: =SUMIFS('Emission Factors'!$L:$L,'Emission Factors'!$I:$I,Scenarios[[#This Row],[Power rating range B]],'Emission Factors'!$J:$J,Scenarios[[#This Row],[Final EU Stage B]]) -> 0.036825 | AK25: ='Emission Factors'!$P$10 -> 10 | AL25: ='Emission Factors'!$R$10 -> 0.07 | AM25: =(1-(((0.0301*Scenarios[[#This Row],[Alternative scenario power rating (kW)]])+16.208)/100))*Scenarios[[#This Row],[B Diesel NOx emission factor g/kWh]] -> 0.325713024 | AN25: =(1-(((0.0301*Scenarios[[#This Row],[Alternative scenario power rating (kW)]])+16.208)/100))*Scenarios[[#This Row],[B Diesel PM emission factor g/kWh]] -> 0.0297479715 | AO25: =Scenarios[[#This Row],[B Diesel NOx emission factor g/kWh]]*'Emission Factors'!$Q$11 -> 0.411264 | AP25: =Scenarios[[#This Row],[B Diesel PM emission factor g/kWh]]*'Emission Factors'!$S$11 -> 0.0331425 | AQ25: =SUMIFS('Emission Factors'!$M:$M,'Emission Factors'!$I:$I,Scenarios[[#This Row],[Power rating range A]],'Emission Factors'!$J:$J,Scenarios[[#This Row],[Baseline EU Stage ]]) -> 255 | AR25: =Scenarios[[#This Row],[A Fuel factor g/kWh]]*Scenarios[[#This Row],[Baseline power rating (kW)]]*Scenarios[[#This Row],[Baseline estimated usage (hrs)]] -> 2550000 | AS25: ='Emission Factors'!$W$9 -> 0.00303289 | AT25: =Scenarios[[#This Row],[A Diesel Carbon factor kg CO2 per g fuel]]*Scenarios[[#This Row],[A fuel use g]] -> 7733.8695 | AU25: =Scenarios[[#This Row],[Baseline power rating (kW)]]*'Emission Factors'!$X$10*Scenarios[[#This Row],[Baseline estimated usage (hrs)]] -> 2303.1 | AV25: =(1-(((0.0301*Scenarios[[#This Row],[Baseline power rating (kW)]])+16.208)/100))*Scenarios[[#This Row],[A fuel use g]] -> 2059941 | AW25: =Scenarios[[#This Row],[A Hybrid fuel use g]]*Scenarios[[#This Row],[A Diesel Carbon factor kg CO2 per g fuel]] -> 6247.574459 | AX25: ='Emission Factors'!$W$11 -> 4.562e-05 | AY25: =Scenarios[[#This Row],[A Biodiesel Carbon factor kg CO2 per g fuel]]*Scenarios[[#This Row],[A fuel use g]] -> 116.331 | AZ25: ='Emission Factors'!$X$13*Scenarios[[#This Row],[Baseline estimated usage (hrs)]]*Scenarios[[#This Row],[Baseline power rating (kW)]] -> 1933.8 | BA25: =SUMIFS('Emission Factors'!$M:$M,'Emission Factors'!$I:$I,Scenarios[[#This Row],[Power rating range B]],'Emission Factors'!$J:$J,Scenarios[[#This Row],[Alternative scenario EU Stage]]) -> 255 | BB25: =Scenarios[[#This Row],[B Fuel factor g/kWh]]*Scenarios[[#This Row],[Alternative scenario power rating (kW)]]*Scenarios[[#This Row],[Alternative scenario estimated usage (hrs)]] -> 2550000 | BC25: ='Emission Factors'!$W$9 -> 0.00303289 | BD25: =Scenarios[[#This Row],[B Diesel Carbon factor kg CO2 per g fuel]]*Scenarios[[#This Row],[B fuel use g]] -> 7733.8695 | BE25: =Scenarios[[#This Row],[Alternative scenario power rating (kW)]]*'Emission Factors'!$X$10*Scenarios[[#This Row],[Alternative scenario estimated usage (hrs)]] -> 2303.1 | BF25: =(1-(((0.0301*Scenarios[[#This Row],[Alternative scenario power rating (kW)]])+16.208)/100))*Scenarios[[#This Row],[B fuel use g]] -> 2059941 | BG25: =Scenarios[[#This Row],[B Hybrid fuel use g]]*Scenarios[[#This Row],[B Diesel Carbon factor kg CO2 per g fuel]] -> 6247.574459 | BH25: ='Emission Factors'!$W$11 -> 4.562e-05 | BI25: =Scenarios[[#This Row],[B Biodiesel Carbon factor kg CO2 per g fuel]]*Scenarios[[#This Row],[B fuel use g]] -> 116.331 | BJ25: ='Emission Factors'!$X$13*Scenarios[[#This Row],[Alternative scenario estimated usage (hrs)]]*Scenarios[[#This Row],[Alternative scenario power rating (kW)]] -> 1933.8
A26: 2 | B26: 3) Sub-structure | C26: Excavator | D26: 100 | E26: 100 | F26: Diesel | G26: EU Stage IV | I26: n/a | J26: =IF(Scenarios[[#This Row],[Baseline technology/ fuel type]]=Lists!$N$8,Scenarios[[#This Row],[A Diesel NOx emission factor g/kWh]],IF(Scenarios[[#This Row],[Baseline technology/ fuel type]]=Lists!$N$9,Scenarios[[#This Row],[A LPG NOx EF g/kWh]],IF(Scenarios[[#This Row],[Baseline technology/ fuel type]]=Lists!$N$10,Scenarios[[#This Row],[A Biodiesel NOx EF g/kWh]],IF(Scenarios[[#This Row],[Baseline technology/ fuel type]]=Lists!$N$11,Scenarios[[#This Row],[A Hybrid NOx EF g/kWh]],0))))*Scenarios[[#This Row],[Baseline estimated usage (hrs)]]*Scenarios[[#This Row],[Baseline power rating (kW)]]/1000*(1-$J$22) -> 4.032 | K26: =IF(Scenarios[[#This Row],[Baseline technology/ fuel type]]=Lists!$N$8,Scenarios[[#This Row],[A Diesel PM emission factor g/kWh]],IF(Scenarios[[#This Row],[Baseline technology/ fuel type]]=Lists!$N$9,Scenarios[[#This Row],[A LPG PM EF g/kWh]],IF(Scenarios[[#This Row],[Baseline technology/ fuel type]]=Lists!$N$10,Scenarios[[#This Row],[A Biodiesel PM EF g/kWh]],IF(Scenarios[[#This Row],[Baseline technology/ fuel type]]=Lists!$N$11,Scenarios[[#This Row],[A Hybrid PM EF g/kWh]],0))))*Scenarios[[#This Row],[Baseline estimated usage (hrs)]]*Scenarios[[#This Row],[Baseline power rating (kW)]]/1000*(1-$K$22) -> 0.36825 | L26: =IF(F32=Lists!$N$8,Scenarios[[#This Row],[A Diesel Carbon emissions kg]],IF(F32=Lists!$N$9,Scenarios[[#This Row],[A LPG CO2 emissions kg]],IF(F32=Lists!$N$10,Scenarios[[#This Row],[A Biodiesel Carbon emissions kg]],IF(F32=Lists!$N$11,Scenarios[[#This Row],[A Hybrid Carbon emissions kg]],Scenarios[[#This Row],[A Electric /battery Carbon emissions kg]]))))*(1-$L$22) -> 1933.8 | M26: Excavator | N26: 100 | O26: 100 | P26: Hybrid | Q26: EU Stage IV | S26: n/a | T26: =IF(Scenarios[[#This Row],[Alternative scenario technology/ fuel type]]=Lists!$N$8,Scenarios[[#This Row],[B Diesel NOx emission factor g/kWh]],IF(Scenarios[[#This Row],[Alternative scenario technology/ fuel type]]=Lists!$N$9,Scenarios[[#This Row],[B LPG NOx EF g/kWh]],IF(Scenarios[[#This Row],[Alternative scenario technology/ fuel type]]=Lists!$N$10,Scenarios[[#This Row],[B Biodiesel NOx EF g/kWh]],IF(Scenarios[[#This Row],[Alternative scenario technology/ fuel type]]=Lists!$N$11,Scenarios[[#This Row],[B Hybrid NOx EF g/kWh]],0))))*Scenarios[[#This Row],[Alternative scenario estimated usage (hrs)]]*Scenarios[[#This Row],[Alternative scenario power rating (kW)]]/1000*(1-$T$22) -> 3.25713024 | U26: =IF(Scenarios[[#This Row],[Alternative scenario technology/ fuel type]]=Lists!$N$8,Scenarios[[#This Row],[B Diesel PM emission factor g/kWh]],IF(Scenarios[[#This Row],[Alternative scenario technology/ fuel type]]=Lists!$N$9,Scenarios[[#This Row],[B LPG PM EF g/kWh]],IF(Scenarios[[#This Row],[Alternative scenario technology/ fuel type]]=Lists!$N$10,Scenarios[[#This Row],[B Biodiesel PM EF g/kWh]],IF(Scenarios[[#This Row],[Alternative scenario technology/ fuel type]]=Lists!$N$11,Scenarios[[#This Row],[B Hybrid PM EF g/kWh]],0))))*Scenarios[[#This Row],[Alternative scenario estimated usage (hrs)]]*Scenarios[[#This Row],[Alternative scenario power rating (kW)]]/1000*(1-$U$22) -> 0.297479715 | V26: =IF(Scenarios[[#This Row],[Alternative scenario technology/ fuel type]]=Lists!$N$8,Scenarios[[#This Row],[B Diesel Carbon emissions kg]],IF(Scenarios[[#This Row],[Alternative scenario technology/ fuel type]]=Lists!$N$9,Scenarios[[#This Row],[B LPG CO2 emissions kg]],IF(Scenarios[[#This Row],[Alternative scenario technology/ fuel type]]=Lists!$N$10,Scenarios[[#This Row],[B Biodiesel Carbon emissions kg]],IF(Scenarios[[#This Row],[Alternative scenario technology/ fuel type]]=Lists!$N$11,Scenarios[[#This Row],[B Hybrid Carbon emissions kg]],Scenarios[[#This Row],[B Electric /battery Carbon emissions kg]]))))*(1-$L$22) -> 6247.574459 | W26: =IF(Scenarios[[#This Row],[Baseline power rating (kW)]]<Lists!$F$8,Lists!$E$8, IF(Scenarios[[#This Row],[Baseline power rating (kW)]]<Lists!$F$9,Lists!$E$9, IF(Scenarios[[#This Row],[Baseline power rating (kW)]]<Lists!$F$10,Lists!$E$10, IF(Scenarios[[#This Row],[Baseline power rating (kW)]]<Lists!$F$11,Lists!$E$11, IF(Scenarios[[#This Row],[Baseline power rating (kW)]]<Lists!$F$12,Lists!$E$12, IF(Scenarios[[#This Row],[Baseline power rating (kW)]]<Lists!$F$13,Lists!$E$13, IF(Scenarios[[#This Row],[Baseline power rating (kW)]]<Lists!$F$14,Lists!$E$14,Lists!$E$15))))))) -> 75≤ kW <130 | X26: =IF(Scenarios[[#This Row],[Alternative scenario power rating (kW)]]<Lists!$F$8,Lists!$E$8, IF(Scenarios[[#This Row],[Alternative scenario power rating (kW)]]<Lists!$F$9,Lists!$E$9, IF(Scenarios[[#This Row],[Alternative scenario power rating (kW)]]<Lists!$F$10,Lists!$E$10, IF(Scenarios[[#This Row],[Alternative scenario power rating (kW)]]<Lists!$F$11,Lists!$E$11, IF(Scenarios[[#This Row],[Alternative scenario power rating (kW)]]<Lists!$F$12,Lists!$E$12, IF(Scenarios[[#This Row],[Alternative scenario power rating (kW)]]<Lists!$F$13,Lists!$E$13, IF(Scenarios[[#This Row],[Alternative scenario power rating (kW)]]<Lists!$F$14,Lists!$E$14,Lists!$E$15))))))) -> 75≤ kW <130 | Y26: =IF(OR(Scenarios[[#This Row],[Baseline resultant EU Stage]]="n/a",Scenarios[[#This Row],[Baseline resultant EU Stage]]=""),Scenarios[[#This Row],[Baseline EU Stage ]],Scenarios[[#This Row],[Baseline resultant EU Stage]]) -> EU Stage IV | Z26: =IF(OR(Scenarios[[#This Row],[Alternative scenario resultant EU Stage]]="n/a",Scenarios[[#This Row],[Alternative scenario resultant EU Stage]]=""),Scenarios[[#This Row],[Alternative scenario EU Stage]],Scenarios[[#This Row],[Alternative scenario resultant EU Stage]]) -> EU Stage IV | AA26: =SUMIFS('Emission Factors'!$K:$K,'Emission Factors'!$I:$I,Scenarios[[#This Row],[Power rating range A]],'Emission Factors'!$J:$J,Scenarios[[#This Row],[Baseline EU Stage ]]) -> 0.4032 | AB26: =SUMIFS('Emission Factors'!$L:$L,'Emission Factors'!$I:$I,Scenarios[[#This Row],[Power rating range A]],'Emission Factors'!$J:$J,Scenarios[[#This Row],[Baseline EU Stage ]]) -> 0.036825 | AC26: ='Emission Factors'!$P$10 -> 10 | AD26: ='Emission Factors'!$R$10 -> 0.07 | AE26: =(1-(((0.0301*Scenarios[[#This Row],[Baseline power rating (kW)]])+16.208)/100))*Scenarios[[#This Row],[A Diesel NOx emission factor g/kWh]] -> 0.325713024 | AF26: =(1-(((0.0301*Scenarios[[#This Row],[Baseline power rating (kW)]])+16.208)/100))*Scenarios[[#This Row],[A Diesel PM emission factor g/kWh]] -> 0.0297479715 | AG26: =Scenarios[[#This Row],[A Diesel NOx emission factor g/kWh]]*'Emission Factors'!$Q$11 -> 0.411264 | AH26: =Scenarios[[#This Row],[A Diesel PM emission factor g/kWh]]*'Emission Factors'!$S$11 -> 0.0331425 | AI26: =SUMIFS('Emission Factors'!$K:$K,'Emission Factors'!$I:$I,Scenarios[[#This Row],[Power rating range B]],'Emission Factors'!$J:$J,Scenarios[[#This Row],[Final EU Stage B]]) -> 0.4032 | AJ26: =SUMIFS('Emission Factors'!$L:$L,'Emission Factors'!$I:$I,Scenarios[[#This Row],[Power rating range B]],'Emission Factors'!$J:$J,Scenarios[[#This Row],[Final EU Stage B]]) -> 0.036825 | AK26: ='Emission Factors'!$P$10 -> 10 | AL26: ='Emission Factors'!$R$10 -> 0.07 | AM26: =(1-(((0.0301*Scenarios[[#This Row],[Alternative scenario power rating (kW)]])+16.208)/100))*Scenarios[[#This Row],[B Diesel NOx emission factor g/kWh]] -> 0.325713024 | AN26: =(1-(((0.0301*Scenarios[[#This Row],[Alternative scenario power rating (kW)]])+16.208)/100))*Scenarios[[#This Row],[B Diesel PM emission factor g/kWh]] -> 0.0297479715 | AO26: =Scenarios[[#This Row],[B Diesel NOx emission factor g/kWh]]*'Emission Factors'!$Q$11 -> 0.411264 | AP26: =Scenarios[[#This Row],[B Diesel PM emission factor g/kWh]]*'Emission Factors'!$S$11 -> 0.0331425 | AQ26: =SUMIFS('Emission Factors'!$M:$M,'Emission Factors'!$I:$I,Scenarios[[#This Row],[Power rating range A]],'Emission Factors'!$J:$J,Scenarios[[#This Row],[Baseline EU Stage ]]) -> 255 | AR26: =Scenarios[[#This Row],[A Fuel factor g/kWh]]*Scenarios[[#This Row],[Baseline power rating (kW)]]*Scenarios[[#This Row],[Baseline estimated usage (hrs)]] -> 2550000 | AS26: ='Emission Factors'!$W$9 -> 0.00303289 | AT26: =Scenarios[[#This Row],[A Diesel Carbon factor kg CO2 per g fuel]]*Scenarios[[#This Row],[A fuel use g]] -> 7733.8695 | AU26: =Scenarios[[#This Row],[Baseline power rating (kW)]]*'Emission Factors'!$X$10*Scenarios[[#This Row],[Baseline estimated usage (hrs)]] -> 2303.1 | AV26: =(1-(((0.0301*Scenarios[[#This Row],[Baseline power rating (kW)]])+16.208)/100))*Scenarios[[#This Row],[A fuel use g]] -> 2059941 | AW26: =Scenarios[[#This Row],[A Hybrid fuel use g]]*Scenarios[[#This Row],[A Diesel Carbon factor kg CO2 per g fuel]] -> 6247.574459 | AX26: ='Emission Factors'!$W$11 -> 4.562e-05 | AY26: =Scenarios[[#This Row],[A Biodiesel Carbon factor kg CO2 per g fuel]]*Scenarios[[#This Row],[A fuel use g]] -> 116.331 | AZ26: ='Emission Factors'!$X$13*Scenarios[[#This Row],[Baseline estimated usage (hrs)]]*Scenarios[[#This Row],[Baseline power rating (kW)]] -> 1933.8 | BA26: =SUMIFS('Emission Factors'!$M:$M,'Emission Factors'!$I:$I,Scenarios[[#This Row],[Power rating range B]],'Emission Factors'!$J:$J,Scenarios[[#This Row],[Alternative scenario EU Stage]]) -> 255 | BB26: =Scenarios[[#This Row],[B Fuel factor g/kWh]]*Scenarios[[#This Row],[Alternative scenario power rating (kW)]]*Scenarios[[#This Row],[Alternative scenario estimated usage (hrs)]] -> 2550000 | BC26: ='Emission Factors'!$W$9 -> 0.00303289 | BD26: =Scenarios[[#This Row],[B Diesel Carbon factor kg CO2 per g fuel]]*Scenarios[[#This Row],[B fuel use g]] -> 7733.8695 | BE26: =Scenarios[[#This Row],[Alternative scenario power rating (kW)]]*'Emission Factors'!$X$10*Scenarios[[#This Row],[Alternative scenario estimated usage (hrs)]] -> 2303.1 | BF26: =(1-(((0.0301*Scenarios[[#This Row],[Alternative scenario power rating (kW)]])+16.208)/100))*Scenarios[[#This Row],[B fuel use g]] -> 2059941 | BG26: =Scenarios[[#This Row],[B Hybrid fuel use g]]*Scenarios[[#This Row],[B Diesel Carbon factor kg CO2 per g fuel]] -> 6247.574459 | BH26: ='Emission Factors'!$W$11 -> 4.562e-05 | BI26: =Scenarios[[#This Row],[B Biodiesel Carbon factor kg CO2 per g fuel]]*Scenarios[[#This Row],[B fuel use g]] -> 116.331 | BJ26: ='Emission Factors'!$X$13*Scenarios[[#This Row],[Alternative scenario estimated usage (hrs)]]*Scenarios[[#This Row],[Alternative scenario power rating (kW)]] -> 1933.8
A27: 3 | B27: 6) Fit-out, testing and commissioning | C27: Cranes/lifts/platform | D27: 100 | E27: 100 | F27: Diesel | G27: EU Stage IV | I27: n/a | J27: =IF(Scenarios[[#This Row],[Baseline technology/ fuel type]]=Lists!$N$8,Scenarios[[#This Row],[A Diesel NOx emission factor g/kWh]],IF(Scenarios[[#This Row],[Baseline technology/ fuel type]]=Lists!$N$9,Scenarios[[#This Row],[A LPG NOx EF g/kWh]],IF(Scenarios[[#This Row],[Baseline technology/ fuel type]]=Lists!$N$10,Scenarios[[#This Row],[A Biodiesel NOx EF g/kWh]],IF(Scenarios[[#This Row],[Baseline technology/ fuel type]]=Lists!$N$11,Scenarios[[#This Row],[A Hybrid NOx EF g/kWh]],0))))*Scenarios[[#This Row],[Baseline estimated usage (hrs)]]*Scenarios[[#This Row],[Baseline power rating (kW)]]/1000*(1-$J$22) -> 4.032 | K27: =IF(Scenarios[[#This Row],[Baseline technology/ fuel type]]=Lists!$N$8,Scenarios[[#This Row],[A Diesel PM emission factor g/kWh]],IF(Scenarios[[#This Row],[Baseline technology/ fuel type]]=Lists!$N$9,Scenarios[[#This Row],[A LPG PM EF g/kWh]],IF(Scenarios[[#This Row],[Baseline technology/ fuel type]]=Lists!$N$10,Scenarios[[#This Row],[A Biodiesel PM EF g/kWh]],IF(Scenarios[[#This Row],[Baseline technology/ fuel type]]=Lists!$N$11,Scenarios[[#This Row],[A Hybrid PM EF g/kWh]],0))))*Scenarios[[#This Row],[Baseline estimated usage (hrs)]]*Scenarios[[#This Row],[Baseline power rating (kW)]]/1000*(1-$K$22) -> 0.36825 | L27: =IF(F33=Lists!$N$8,Scenarios[[#This Row],[A Diesel Carbon emissions kg]],IF(F33=Lists!$N$9,Scenarios[[#This Row],[A LPG CO2 emissions kg]],IF(F33=Lists!$N$10,Scenarios[[#This Row],[A Biodiesel Carbon emissions kg]],IF(F33=Lists!$N$11,Scenarios[[#This Row],[A Hybrid Carbon emissions kg]],Scenarios[[#This Row],[A Electric /battery Carbon emissions kg]]))))*(1-$L$22) -> 1933.8 | M27: Cranes/lifts/platform | N27: 100 | O27: 100 | P27: Hybrid | Q27: EU Stage IV | S27: n/a | T27: =IF(Scenarios[[#This Row],[Alternative scenario technology/ fuel type]]=Lists!$N$8,Scenarios[[#This Row],[B Diesel NOx emission factor g/kWh]],IF(Scenarios[[#This Row],[Alternative scenario technology/ fuel type]]=Lists!$N$9,Scenarios[[#This Row],[B LPG NOx EF g/kWh]],IF(Scenarios[[#This Row],[Alternative scenario technology/ fuel type]]=Lists!$N$10,Scenarios[[#This Row],[B Biodiesel NOx EF g/kWh]],IF(Scenarios[[#This Row],[Alternative scenario technology/ fuel type]]=Lists!$N$11,Scenarios[[#This Row],[B Hybrid NOx EF g/kWh]],0))))*Scenarios[[#This Row],[Alternative scenario estimated usage (hrs)]]*Scenarios[[#This Row],[Alternative scenario power rating (kW)]]/1000*(1-$T$22) -> 3.25713024 | U27: =IF(Scenarios[[#This Row],[Alternative scenario technology/ fuel type]]=Lists!$N$8,Scenarios[[#This Row],[B Diesel PM emission factor g/kWh]],IF(Scenarios[[#This Row],[Alternative scenario technology/ fuel type]]=Lists!$N$9,Scenarios[[#This Row],[B LPG PM EF g/kWh]],IF(Scenarios[[#This Row],[Alternative scenario technology/ fuel type]]=Lists!$N$10,Scenarios[[#This Row],[B Biodiesel PM EF g/kWh]],IF(Scenarios[[#This Row],[Alternative scenario technology/ fuel type]]=Lists!$N$11,Scenarios[[#This Row],[B Hybrid PM EF g/kWh]],0))))*Scenarios[[#This Row],[Alternative scenario estimated usage (hrs)]]*Scenarios[[#This Row],[Alternative scenario power rating (kW)]]/1000*(1-$U$22) -> 0.297479715 | V27: =IF(Scenarios[[#This Row],[Alternative scenario technology/ fuel type]]=Lists!$N$8,Scenarios[[#This Row],[B Diesel Carbon emissions kg]],IF(Scenarios[[#This Row],[Alternative scenario technology/ fuel type]]=Lists!$N$9,Scenarios[[#This Row],[B LPG CO2 emissions kg]],IF(Scenarios[[#This Row],[Alternative scenario technology/ fuel type]]=Lists!$N$10,Scenarios[[#This Row],[B Biodiesel Carbon emissions kg]],IF(Scenarios[[#This Row],[Alternative scenario technology/ fuel type]]=Lists!$N$11,Scenarios[[#This Row],[B Hybrid Carbon emissions kg]],Scenarios[[#This Row],[B Electric /battery Carbon emissions kg]]))))*(1-$L$22) -> 6247.574459 | W27: =IF(Scenarios[[#This Row],[Baseline power rating (kW)]]<Lists!$F$8,Lists!$E$8, IF(Scenarios[[#This Row],[Baseline power rating (kW)]]<Lists!$F$9,Lists!$E$9, IF(Scenarios[[#This Row],[Baseline power rating (kW)]]<Lists!$F$10,Lists!$E$10, IF(Scenarios[[#This Row],[Baseline power rating (kW)]]<Lists!$F$11,Lists!$E$11, IF(Scenarios[[#This Row],[Baseline power rating (kW)]]<Lists!$F$12,Lists!$E$12, IF(Scenarios[[#This Row],[Baseline power rating (kW)]]<Lists!$F$13,Lists!$E$13, IF(Scenarios[[#This Row],[Baseline power rating (kW)]]<Lists!$F$14,Lists!$E$14,Lists!$E$15))))))) -> 75≤ kW <130 | X27: =IF(Scenarios[[#This Row],[Alternative scenario power rating (kW)]]<Lists!$F$8,Lists!$E$8, IF(Scenarios[[#This Row],[Alternative scenario power rating (kW)]]<Lists!$F$9,Lists!$E$9, IF(Scenarios[[#This Row],[Alternative scenario power rating (kW)]]<Lists!$F$10,Lists!$E$10, IF(Scenarios[[#This Row],[Alternative scenario power rating (kW)]]<Lists!$F$11,Lists!$E$11, IF(Scenarios[[#This Row],[Alternative scenario power rating (kW)]]<Lists!$F$12,Lists!$E$12, IF(Scenarios[[#This Row],[Alternative scenario power rating (kW)]]<Lists!$F$13,Lists!$E$13, IF(Scenarios[[#This Row],[Alternative scenario power rating (kW)]]<Lists!$F$14,Lists!$E$14,Lists!$E$15))))))) -> 75≤ kW <130 | Y27: =IF(OR(Scenarios[[#This Row],[Baseline resultant EU Stage]]="n/a",Scenarios[[#This Row],[Baseline resultant EU Stage]]=""),Scenarios[[#This Row],[Baseline EU Stage ]],Scenarios[[#This Row],[Baseline resultant EU Stage]]) -> EU Stage IV | Z27: =IF(OR(Scenarios[[#This Row],[Alternative scenario resultant EU Stage]]="n/a",Scenarios[[#This Row],[Alternative scenario resultant EU Stage]]=""),Scenarios[[#This Row],[Alternative scenario EU Stage]],Scenarios[[#This Row],[Alternative scenario resultant EU Stage]]) -> EU Stage IV | AA27: =SUMIFS('Emission Factors'!$K:$K,'Emission Factors'!$I:$I,Scenarios[[#This Row],[Power rating range A]],'Emission Factors'!$J:$J,Scenarios[[#This Row],[Baseline EU Stage ]]) -> 0.4032 | AB27: =SUMIFS('Emission Factors'!$L:$L,'Emission Factors'!$I:$I,Scenarios[[#This Row],[Power rating range A]],'Emission Factors'!$J:$J,Scenarios[[#This Row],[Baseline EU Stage ]]) -> 0.036825 | AC27: ='Emission Factors'!$P$10 -> 10 | AD27: ='Emission Factors'!$R$10 -> 0.07 | AE27: =(1-(((0.0301*Scenarios[[#This Row],[Baseline power rating (kW)]])+16.208)/100))*Scenarios[[#This Row],[A Diesel NOx emission factor g/kWh]] -> 0.325713024 | AF27: =(1-(((0.0301*Scenarios[[#This Row],[Baseline power rating (kW)]])+16.208)/100))*Scenarios[[#This Row],[A Diesel PM emission factor g/kWh]] -> 0.0297479715 | AG27: =Scenarios[[#This Row],[A Diesel NOx emission factor g/kWh]]*'Emission Factors'!$Q$11 -> 0.411264 | AH27: =Scenarios[[#This Row],[A Diesel PM emission factor g/kWh]]*'Emission Factors'!$S$11 -> 0.0331425 | AI27: =SUMIFS('Emission Factors'!$K:$K,'Emission Factors'!$I:$I,Scenarios[[#This Row],[Power rating range B]],'Emission Factors'!$J:$J,Scenarios[[#This Row],[Final EU Stage B]]) -> 0.4032 | AJ27: =SUMIFS('Emission Factors'!$L:$L,'Emission Factors'!$I:$I,Scenarios[[#This Row],[Power rating range B]],'Emission Factors'!$J:$J,Scenarios[[#This Row],[Final EU Stage B]]) -> 0.036825 | AK27: ='Emission Factors'!$P$10 -> 10 | AL27: ='Emission Factors'!$R$10 -> 0.07 | AM27: =(1-(((0.0301*Scenarios[[#This Row],[Alternative scenario power rating (kW)]])+16.208)/100))*Scenarios[[#This Row],[B Diesel NOx emission factor g/kWh]] -> 0.325713024 | AN27: =(1-(((0.0301*Scenarios[[#This Row],[Alternative scenario power rating (kW)]])+16.208)/100))*Scenarios[[#This Row],[B Diesel PM emission factor g/kWh]] -> 0.0297479715 | AO27: =Scenarios[[#This Row],[B Diesel NOx emission factor g/kWh]]*'Emission Factors'!$Q$11 -> 0.411264 | AP27: =Scenarios[[#This Row],[B Diesel PM emission factor g/kWh]]*'Emission Factors'!$S$11 -> 0.0331425 | AQ27: =SUMIFS('Emission Factors'!$M:$M,'Emission Factors'!$I:$I,Scenarios[[#This Row],[Power rating range A]],'Emission Factors'!$J:$J,Scenarios[[#This Row],[Baseline EU Stage ]]) -> 255 | AR27: =Scenarios[[#This Row],[A Fuel factor g/kWh]]*Scenarios[[#This Row],[Baseline power rating (kW)]]*Scenarios[[#This Row],[Baseline estimated usage (hrs)]] -> 2550000 | AS27: ='Emission Factors'!$W$9 -> 0.00303289 | AT27: =Scenarios[[#This Row],[A Diesel Carbon factor kg CO2 per g fuel]]*Scenarios[[#This Row],[A fuel use g]] -> 7733.8695 | AU27: =Scenarios[[#This Row],[Baseline power rating (kW)]]*'Emission Factors'!$X$10*Scenarios[[#This Row],[Baseline estimated usage (hrs)]] -> 2303.1 | AV27: =(1-(((0.0301*Scenarios[[#This Row],[Baseline power rating (kW)]])+16.208)/100))*Scenarios[[#This Row],[A fuel use g]] -> 2059941 | AW27: =Scenarios[[#This Row],[A Hybrid fuel use g]]*Scenarios[[#This Row],[A Diesel Carbon factor kg CO2 per g fuel]] -> 6247.574459 | AX27: ='Emission Factors'!$W$11 -> 4.562e-05 | AY27: =Scenarios[[#This Row],[A Biodiesel Carbon factor kg CO2 per g fuel]]*Scenarios[[#This Row],[A fuel use g]] -> 116.331 | AZ27: ='Emission Factors'!$X$13*Scenarios[[#This Row],[Baseline estimated usage (hrs)]]*Scenarios[[#This Row],[Baseline power rating (kW)]] -> 1933.8 | BA27: =SUMIFS('Emission Factors'!$M:$M,'Emission Factors'!$I:$I,Scenarios[[#This Row],[Power rating range B]],'Emission Factors'!$J:$J,Scenarios[[#This Row],[Alternative scenario EU Stage]]) -> 255 | BB27: =Scenarios[[#This Row],[B Fuel factor g/kWh]]*Scenarios[[#This Row],[Alternative scenario power rating (kW)]]*Scenarios[[#This Row],[Alternative scenario estimated usage (hrs)]] -> 2550000 | BC27: ='Emission Factors'!$W$9 -> 0.00303289 | BD27: =Scenarios[[#This Row],[B Diesel Carbon factor kg CO2 per g fuel]]*Scenarios[[#This Row],[B fuel use g]] -> 7733.8695 | BE27: =Scenarios[[#This Row],[Alternative scenario power rating (kW)]]*'Emission Factors'!$X$10*Scenarios[[#This Row],[Alternative scenario estimated usage (hrs)]] -> 2303.1 | BF27: =(1-(((0.0301*Scenarios[[#This Row],[Alternative scenario power rating (kW)]])+16.208)/100))*Scenarios[[#This Row],[B fuel use g]] -> 2059941 | BG27: =Scenarios[[#This Row],[B Hybrid fuel use g]]*Scenarios[[#This Row],[B Diesel Carbon factor kg CO2 per g fuel]] -> 6247.574459 | BH27: ='Emission Factors'!$W$11 -> 4.562e-05 | BI27: =Scenarios[[#This Row],[B Biodiesel Carbon factor kg CO2 per g fuel]]*Scenarios[[#This Row],[B fuel use g]] -> 116.331 | BJ27: ='Emission Factors'!$X$13*Scenarios[[#This Row],[Alternative scenario estimated usage (hrs)]]*Scenarios[[#This Row],[Alternative scenario power rating (kW)]] -> 1933.8
A28: 4 | B28: 6) Fit-out, testing and commissioning | C28: Cleaning equipment | D28: 100 | E28: 50 | F28: Diesel | G28: EU Stage V | I28: n/a | J28: =IF(Scenarios[[#This Row],[Baseline technology/ fuel type]]=Lists!$N$8,Scenarios[[#This Row],[A Diesel NOx emission factor g/kWh]],IF(Scenarios[[#This Row],[Baseline technology/ fuel type]]=Lists!$N$9,Scenarios[[#This Row],[A LPG NOx EF g/kWh]],IF(Scenarios[[#This Row],[Baseline technology/ fuel type]]=Lists!$N$10,Scenarios[[#This Row],[A Biodiesel NOx EF g/kWh]],IF(Scenarios[[#This Row],[Baseline technology/ fuel type]]=Lists!$N$11,Scenarios[[#This Row],[A Hybrid NOx EF g/kWh]],0))))*Scenarios[[#This Row],[Baseline estimated usage (hrs)]]*Scenarios[[#This Row],[Baseline power rating (kW)]]/1000*(1-$J$22) -> 19.2024 | K28: =IF(Scenarios[[#This Row],[Baseline technology/ fuel type]]=Lists!$N$8,Scenarios[[#This Row],[A Diesel PM emission factor g/kWh]],IF(Scenarios[[#This Row],[Baseline technology/ fuel type]]=Lists!$N$9,Scenarios[[#This Row],[A LPG PM EF g/kWh]],IF(Scenarios[[#This Row],[Baseline technology/ fuel type]]=Lists!$N$10,Scenarios[[#This Row],[A Biodiesel PM EF g/kWh]],IF(Scenarios[[#This Row],[Baseline technology/ fuel type]]=Lists!$N$11,Scenarios[[#This Row],[A Hybrid PM EF g/kWh]],0))))*Scenarios[[#This Row],[Baseline estimated usage (hrs)]]*Scenarios[[#This Row],[Baseline power rating (kW)]]/1000*(1-$K$22) -> 0.110475 | L28: =IF(F34=Lists!$N$8,Scenarios[[#This Row],[A Diesel Carbon emissions kg]],IF(F34=Lists!$N$9,Scenarios[[#This Row],[A LPG CO2 emissions kg]],IF(F34=Lists!$N$10,Scenarios[[#This Row],[A Biodiesel Carbon emissions kg]],IF(F34=Lists!$N$11,Scenarios[[#This Row],[A Hybrid Carbon emissions kg]],Scenarios[[#This Row],[A Electric /battery Carbon emissions kg]]))))*(1-$L$22) -> 966.9 | M28: Cleaning equipment | N28: 100 | O28: 50 | P28: Hybrid | Q28: EU Stage IV | S28: n/a | T28: =IF(Scenarios[[#This Row],[Alternative scenario technology/ fuel type]]=Lists!$N$8,Scenarios[[#This Row],[B Diesel NOx emission factor g/kWh]],IF(Scenarios[[#This Row],[Alternative scenario technology/ fuel type]]=Lists!$N$9,Scenarios[[#This Row],[B LPG NOx EF g/kWh]],IF(Scenarios[[#This Row],[Alternative scenario technology/ fuel type]]=Lists!$N$10,Scenarios[[#This Row],[B Biodiesel NOx EF g/kWh]],IF(Scenarios[[#This Row],[Alternative scenario technology/ fuel type]]=Lists!$N$11,Scenarios[[#This Row],[B Hybrid NOx EF g/kWh]],0))))*Scenarios[[#This Row],[Alternative scenario estimated usage (hrs)]]*Scenarios[[#This Row],[Alternative scenario power rating (kW)]]/1000*(1-$T$22) -> 15.80107889 | U28: =IF(Scenarios[[#This Row],[Alternative scenario technology/ fuel type]]=Lists!$N$8,Scenarios[[#This Row],[B Diesel PM emission factor g/kWh]],IF(Scenarios[[#This Row],[Alternative scenario technology/ fuel type]]=Lists!$N$9,Scenarios[[#This Row],[B LPG PM EF g/kWh]],IF(Scenarios[[#This Row],[Alternative scenario technology/ fuel type]]=Lists!$N$10,Scenarios[[#This Row],[B Biodiesel PM EF g/kWh]],IF(Scenarios[[#This Row],[Alternative scenario technology/ fuel type]]=Lists!$N$11,Scenarios[[#This Row],[B Hybrid PM EF g/kWh]],0))))*Scenarios[[#This Row],[Alternative scenario estimated usage (hrs)]]*Scenarios[[#This Row],[Alternative scenario power rating (kW)]]/1000*(1-$U$22) -> 0.1515109388 | V28: =IF(Scenarios[[#This Row],[Alternative scenario technology/ fuel type]]=Lists!$N$8,Scenarios[[#This Row],[B Diesel Carbon emissions kg]],IF(Scenarios[[#This Row],[Alternative scenario technology/ fuel type]]=Lists!$N$9,Scenarios[[#This Row],[B LPG CO2 emissions kg]],IF(Scenarios[[#This Row],[Alternative scenario technology/ fuel type]]=Lists!$N$10,Scenarios[[#This Row],[B Biodiesel Carbon emissions kg]],IF(Scenarios[[#This Row],[Alternative scenario technology/ fuel type]]=Lists!$N$11,Scenarios[[#This Row],[B Hybrid Carbon emissions kg]],Scenarios[[#This Row],[B Electric /battery Carbon emissions kg]]))))*(1-$L$22) -> 3244.376453 | W28: =IF(Scenarios[[#This Row],[Baseline power rating (kW)]]<Lists!$F$8,Lists!$E$8, IF(Scenarios[[#This Row],[Baseline power rating (kW)]]<Lists!$F$9,Lists!$E$9, IF(Scenarios[[#This Row],[Baseline power rating (kW)]]<Lists!$F$10,Lists!$E$10, IF(Scenarios[[#This Row],[Baseline power rating (kW)]]<Lists!$F$11,Lists!$E$11, IF(Scenarios[[#This Row],[Baseline power rating (kW)]]<Lists!$F$12,Lists!$E$12, IF(Scenarios[[#This Row],[Baseline power rating (kW)]]<Lists!$F$13,Lists!$E$13, IF(Scenarios[[#This Row],[Baseline power rating (kW)]]<Lists!$F$14,Lists!$E$14,Lists!$E$15))))))) -> 37≤ kW <56 | X28: =IF(Scenarios[[#This Row],[Alternative scenario power rating (kW)]]<Lists!$F$8,Lists!$E$8, IF(Scenarios[[#This Row],[Alternative scenario power rating (kW)]]<Lists!$F$9,Lists!$E$9, IF(Scenarios[[#This Row],[Alternative scenario power rating (kW)]]<Lists!$F$10,Lists!$E$10, IF(Scenarios[[#This Row],[Alternative scenario power rating (kW)]]<Lists!$F$11,Lists!$E$11, IF(Scenarios[[#This Row],[Alternative scenario power rating (kW)]]<Lists!$F$12,Lists!$E$12, IF(Scenarios[[#This Row],[Alternative scenario power rating (kW)]]<Lists!$F$13,Lists!$E$13, IF(Scenarios[[#This Row],[Alternative scenario power rating (kW)]]<Lists!$F$14,Lists!$E$14,Lists!$E$15))))))) -> 37≤ kW <56 | Y28: =IF(OR(Scenarios[[#This Row],[Baseline resultant EU Stage]]="n/a",Scenarios[[#This Row],[Baseline resultant EU Stage]]=""),Scenarios[[#This Row],[Baseline EU Stage ]],Scenarios[[#This Row],[Baseline resultant EU Stage]]) -> EU Stage V | Z28: =IF(OR(Scenarios[[#This Row],[Alternative scenario resultant EU Stage]]="n/a",Scenarios[[#This Row],[Alternative scenario resultant EU Stage]]=""),Scenarios[[#This Row],[Alternative scenario EU Stage]],Scenarios[[#This Row],[Alternative scenario resultant EU Stage]]) -> EU Stage IV | AA28: =SUMIFS('Emission Factors'!$K:$K,'Emission Factors'!$I:$I,Scenarios[[#This Row],[Power rating range A]],'Emission Factors'!$J:$J,Scenarios[[#This Row],[Baseline EU Stage ]]) -> 3.84048 | AB28: =SUMIFS('Emission Factors'!$L:$L,'Emission Factors'!$I:$I,Scenarios[[#This Row],[Power rating range A]],'Emission Factors'!$J:$J,Scenarios[[#This Row],[Baseline EU Stage ]]) -> 0.022095 | AC28: ='Emission Factors'!$P$10 -> 10 | AD28: ='Emission Factors'!$R$10 -> 0.07 | AE28: =(1-(((0.0301*Scenarios[[#This Row],[Baseline power rating (kW)]])+16.208)/100))*Scenarios[[#This Row],[A Diesel NOx emission factor g/kWh]] -> 3.160215778 | AF28: =(1-(((0.0301*Scenarios[[#This Row],[Baseline power rating (kW)]])+16.208)/100))*Scenarios[[#This Row],[A Diesel PM emission factor g/kWh]] -> 0.01818131265 | AG28: =Scenarios[[#This Row],[A Diesel NOx emission factor g/kWh]]*'Emission Factors'!$Q$11 -> 3.9172896 | AH28: =Scenarios[[#This Row],[A Diesel PM emission factor g/kWh]]*'Emission Factors'!$S$11 -> 0.0198855 | AI28: =SUMIFS('Emission Factors'!$K:$K,'Emission Factors'!$I:$I,Scenarios[[#This Row],[Power rating range B]],'Emission Factors'!$J:$J,Scenarios[[#This Row],[Final EU Stage B]]) -> 3.84048 | AJ28: =SUMIFS('Emission Factors'!$L:$L,'Emission Factors'!$I:$I,Scenarios[[#This Row],[Power rating range B]],'Emission Factors'!$J:$J,Scenarios[[#This Row],[Final EU Stage B]]) -> 0.036825 | AK28: ='Emission Factors'!$P$10 -> 10 | AL28: ='Emission Factors'!$R$10 -> 0.07 | AM28: =(1-(((0.0301*Scenarios[[#This Row],[Alternative scenario power rating (kW)]])+16.208)/100))*Scenarios[[#This Row],[B Diesel NOx emission factor g/kWh]] -> 3.160215778 | AN28: =(1-(((0.0301*Scenarios[[#This Row],[Alternative scenario power rating (kW)]])+16.208)/100))*Scenarios[[#This Row],[B Diesel PM emission factor g/kWh]] -> 0.03030218775 | AO28: =Scenarios[[#This Row],[B Diesel NOx emission factor g/kWh]]*'Emission Factors'!$Q$11 -> 3.9172896 | AP28: =Scenarios[[#This Row],[B Diesel PM emission factor g/kWh]]*'Emission Factors'!$S$11 -> 0.0331425 | AQ28: =SUMIFS('Emission Factors'!$M:$M,'Emission Factors'!$I:$I,Scenarios[[#This Row],[Power rating range A]],'Emission Factors'!$J:$J,Scenarios[[#This Row],[Baseline EU Stage ]]) -> 260 | AR28: =Scenarios[[#This Row],[A Fuel factor g/kWh]]*Scenarios[[#This Row],[Baseline power rating (kW)]]*Scenarios[[#This Row],[Baseline estimated usage (hrs)]] -> 1300000 | AS28: ='Emission Factors'!$W$9 -> 0.00303289 | AT28: =Scenarios[[#This Row],[A Diesel Carbon factor kg CO2 per g fuel]]*Scenarios[[#This Row],[A fuel use g]] -> 3942.757 | AU28: =Scenarios[[#This Row],[Baseline power rating (kW)]]*'Emission Factors'!$X$10*Scenarios[[#This Row],[Baseline estimated usage (hrs)]] -> 1151.55 | AV28: =(1-(((0.0301*Scenarios[[#This Row],[Baseline power rating (kW)]])+16.208)/100))*Scenarios[[#This Row],[A fuel use g]] -> 1069731 | AW28: =Scenarios[[#This Row],[A Hybrid fuel use g]]*Scenarios[[#This Row],[A Diesel Carbon factor kg CO2 per g fuel]] -> 3244.376453 | AX28: ='Emission Factors'!$W$11 -> 4.562e-05 | AY28: =Scenarios[[#This Row],[A Biodiesel Carbon factor kg CO2 per g fuel]]*Scenarios[[#This Row],[A fuel use g]] -> 59.306 | AZ28: ='Emission Factors'!$X$13*Scenarios[[#This Row],[Baseline estimated usage (hrs)]]*Scenarios[[#This Row],[Baseline power rating (kW)]] -> 966.9 | BA28: =SUMIFS('Emission Factors'!$M:$M,'Emission Factors'!$I:$I,Scenarios[[#This Row],[Power rating range B]],'Emission Factors'!$J:$J,Scenarios[[#This Row],[Alternative scenario EU Stage]]) -> 260 | BB28: =Scenarios[[#This Row],[B Fuel factor g/kWh]]*Scenarios[[#This Row],[Alternative scenario power rating (kW)]]*Scenarios[[#This Row],[Alternative scenario estimated usage (hrs)]] -> 1300000 | BC28: ='Emission Factors'!$W$9 -> 0.00303289 | BD28: =Scenarios[[#This Row],[B Diesel Carbon factor kg CO2 per g fuel]]*Scenarios[[#This Row],[B fuel use g]] -> 3942.757 | BE28: =Scenarios[[#This Row],[Alternative scenario power rating (kW)]]*'Emission Factors'!$X$10*Scenarios[[#This Row],[Alternative scenario estimated usage (hrs)]] -> 1151.55 | BF28: =(1-(((0.0301*Scenarios[[#This Row],[Alternative scenario power rating (kW)]])+16.208)/100))*Scenarios[[#This Row],[B fuel use g]] -> 1069731 | BG28: =Scenarios[[#This Row],[B Hybrid fuel use g]]*Scenarios[[#This Row],[B Diesel Carbon factor kg CO2 per g fuel]] -> 3244.376453 | BH28: ='Emission Factors'!$W$11 -> 4.562e-05 | BI28: =Scenarios[[#This Row],[B Biodiesel Carbon factor kg CO2 per g fuel]]*Scenarios[[#This Row],[B fuel use g]] -> 59.306 | BJ28: ='Emission Factors'!$X$13*Scenarios[[#This Row],[Alternative scenario estimated usage (hrs)]]*Scenarios[[#This Row],[Alternative scenario power rating (kW)]] -> 966.9

Sheet NOx comparison (hidden)
A3: Sum of Baseline NOx kg | B3: Sum of Alternative Scenario NOx kg
A4: 31.2984 | B4: 25.57246961 | D4: =(GETPIVOTDATA("Sum of Baseline NOx kg",$A$3)-GETPIVOTDATA("Sum of Alternative Scenario NOx kg",$A$3))/GETPIVOTDATA("Sum of Alternative Scenario NOx kg",$A$3) -> 0.22390995 | E4: =IF(D4>0," more than Alternative Scenario", " less than Alternatvie Scenario") -> more than Alternative Scenario | F4: =_xlfn.CONCAT("NOx: Baseline ",ABS(ROUND(D4*100,0)),"%",E4) -> NOx: Baseline 22% more than Alternative Scenario

Sheet PM comparison (hidden)
A3: Sum of Baseline PM kg | B3: Sum of Alternative Scenario PM kg
A4: 1.215225 | B4: 1.043950084 | D4: =(GETPIVOTDATA("Sum of Baseline PM kg",$A$3)-GETPIVOTDATA("Sum of Alternative Scenario PM kg",$A$3))/GETPIVOTDATA("Sum of Alternative Scenario PM kg",$A$3) -> 0.1640642775 | E4: =IF(D4>0," more than Alternative Scenario", " less than Alternative Scenario") -> more than Alternative Scenario | F4: =_xlfn.CONCAT("PM: Baseline ",ABS(ROUND(D4*100,0)),"%",E4) -> PM: Baseline 16% more than Alternative Scenario

Sheet CO2 comparison (hidden)
A3: Sum of Baseline Carbon kg | B3: Sum of Alternative Scenario Carbon kg
A4: 6768.3 | B4: 21987.09983 | D4: =(GETPIVOTDATA("Sum of Baseline Carbon kg",$A$3)-GETPIVOTDATA("Sum of Alternative Scenario Carbon kg",$A$3))/GETPIVOTDATA("Sum of Alternative Scenario Carbon kg",$A$3) -> -0.692169497 | E4: =IF(D4>0," more than Alternative Scenario", " less than Alternative Scenario") -> less than Alternative Scenario | F4: =_xlfn.CONCAT("Carbon: Baseline ",ABS(ROUND(D4*100,0)),"%",E4) -> Carbon: Baseline 69% less than Alternative Scenario

Sheet GLA NRMM Policy (hidden)
A6: GLA NRMM policy areas | C6: 2025 | D6: 2030 | E6: 2040
A7: Central Activity Zone and Canary Wharf | B7: EU Stage IV | C7: EU Stage IV | D7: EU Stage V | E7: Electric
A8: Opportunity Area | B8: EU Stage IV | C8: EU Stage IV | D8: EU Stage V | E8: Electric
A9: Other areas of Greater London | B9: EU Stage IIIB | C9: EU Stage IV | D9: EU Stage V | E9: Electric
A11: Constant Speed Engines (Generators) | B11: EU Stage V | C11: EU Stage V | D11: EU Stage V | E11: Electric

Sheet Retrofit abatement (hidden)
A5: Refer to guidance on resultant EU Stage from certified abatement:
A6: https://energysavingtrust.org.uk/service/non-road-mobile-machinery-certification/
A28: Diesel Particulate Filter (DPF)
A29: Selective Catalytic Reduction (SCR)

Sheet Emission Factors (hidden)
A6: 1.A.2.g vii | B6: EMEP/EEA 2019 | H6: Adjusted with deterioration factor and "Middle" Load factor | V6: g to tonne | W6: 1e-06
A7: Tier 3 | H7: Tier 3 | O7: Alternative Fuels
A8: Fuel | B8: Engine Power | C8: Stage | D8: NOx g/kWh | E8: PM g/kWh | F8: Fuel Consumption (FC) g/kWH | H8: Fuel | I8: Engine Power | J8: Stage | K8: NOx g/kWh | L8: PM g/kWh | M8: Fuel Consumption (FC) g/kWH | O8: Fuel | P8: NOx g/kWh | Q8: NOx factor | R8: PM g/kWh | S8: PM factor | T8: Fuel Consumption (FC) g/kWH | U8: FC factor | V8: Carbon factor kg CO2e per tonne fuel | W8: Carbon factor kg CO2e per g fuel | X8: Carbon factor kg CO2e per kWh
A9: Diesel | B9: kW <8 | C9: EU Stage I | D9: 11.2 | E9: 1.6 | F9: 270 | H9: Diesel | I9: kW <8 | J9: EU Stage I | K9: =D9*_xlfn.XLOOKUP(J9,$H$61:$H$67,$I$61:$I$67,,0,)*_xlfn.XLOOKUP(J9,$H$77:$H$82,$K$77:$K$82,,0,) -> 11.75552 | L9: =E9*_xlfn.XLOOKUP(J9,$H$61:$H$67,$J$61:$J$67,,0,)*_xlfn.XLOOKUP(J9,$H$77:$H$82,$L$77:$L$82,,0,) -> 3.77088 | M9: =F9*_xlfn.XLOOKUP(J9,$H$77:$H$82,$M$77:$M$82,,0,) -> 295.65 | O9: Diesel | P9: - | Q9: - | R9: - | S9: - | T9: - | U9: - | V9: 3032.89 | W9: =V9*$W$6 -> 0.00303289
B10: kW <8 | C10: EU Stage II | D10: =D9 -> 11.2 | E10: =E9 -> 1.6 | F10: 270 | I10: kW <8 | J10: EU Stage II | K10: =D10*_xlfn.XLOOKUP(J10,$H$61:$H$67,$I$61:$I$67,,0,)*_xlfn.XLOOKUP(J10,$H$77:$H$82,$K$77:$K$82,,0,) -> 11.58332 | L10: =E10*_xlfn.XLOOKUP(J10,$H$61:$H$67,$J$61:$J$67,,0,)*_xlfn.XLOOKUP(J10,$H$77:$H$82,$L$77:$L$82,,0,) -> 3.77088 | M10: =F10*_xlfn.XLOOKUP(J10,$H$77:$H$82,$M$77:$M$82,,0,) -> 295.65 | O10: LPG | P10: 10 | Q10: - | R10: 0.07 | S10: - | T10: 311 | U10: - | V10: 2939.29 | W10: =V10*$W$6 -> 0.00293929 | X10: 0.23031
B11: kW <8 | C11: EU Stage IIIA | D11: =D10 -> 11.2 | E11: 1.6 | F11: 270 | I11: kW <8 | J11: EU Stage IIIA | K11: =D11*_xlfn.XLOOKUP(J11,$H$61:$H$67,$I$61:$I$67,,0,)*_xlfn.XLOOKUP(J11,$H$77:$H$82,$K$77:$K$82,,0,) -> 12.7008 | L11: 4.525056 | M11: 295.65 | O11: Biodiesel | P11: - | Q11: 1.02 | R11: - | S11: 0.9 | T11: - | U11: - | V11: =0.04562*1000 -> 45.62 | W11: =V11*$W$6 -> 4.562e-05
B12: kW <8 | C12: EU Stage IIIB | D12: =D11 -> 11.2 | E12: 1.6 | F12: 270 | I12: kW <8 | J12: EU Stage IIIB | K12: 11.2896 | L12: 2.3568 | M12: 270 | O12: Hybrid | P12: - | Q12: - | R12: - | S12: - | T12: - | U12: - | V12: - | W12: - | X12: -
B13: kW <8 | C13: EU Stage IV | D13: 11.2 | E13: 1.6 | F13: 270 | I13: kW <8 | J13: EU Stage IV | K13: 11.2896 | L13: 2.3568 | M13: 270 | O13: Electric/battery | Q13: 0 | S13: 0 | U13: 0 | V13: 0 | W13: 0 | X13: 0.19338
B14: kW <8 | C14: EU Stage V | D14: 6.08 | E14: 0.4 | F14: 270 | I14: kW <8 | J14: EU Stage V | K14: 6.12864 | L14: 0.5892 | M14: 270 | O14: Below not used
B15: 8≤ kW <19 | C15: EU Stage I | D15: 11.2 | E15: 1.6 | F15: 270 | I15: 8≤ kW <19 | J15: EU Stage I | K15: 11.75552 | L15: 3.77088 | M15: 295.65 | O15: Petrol | P15: - | Q15: - | R15: - | S15: - | T15: - | U15: - | V15: 2903.08 | W15: =V15*$W$6 -> 0.00290308
B16: 8≤ kW <19 | C16: EU Stage II | D16: =D15 -> 11.2 | E16: 1.6 | F16: =F15 -> 270 | I16: 8≤ kW <19 | J16: EU Stage II | K16: 11.58332 | L16: 3.77088 | M16: 295.65 | O16: Natural Gas | V16: 2539.25 | W16: =V16*$W$6 -> 0.00253925
B17: 8≤ kW <19 | C17: EU Stage IIIA | D17: 11.2 | E17: 1.6 | F17: 270 | I17: 8≤ kW <19 | J17: EU Stage IIIA | K17: 12.7008 | L17: 4.525056 | M17: 295.65 | O17: Hydrogen | V17: ?
B18: 8≤ kW <19 | C18: EU Stage IIIB | D18: 11.2 | E18: 1.6 | F18: 270 | I18: 8≤ kW <19 | J18: EU Stage IIIB | K18: 11.2896 | L18: 2.3568 | M18: 270 | O18: Fuel Cell | Q18: 0 | S18: 0 | U18: 0 | V18: 0 | W18: 0
B19: 8≤ kW <19 | C19: EU Stage IV | D19: 11.2 | E19: 1.6 | F19: 270 | I19: 8≤ kW <19 | J19: EU Stage IV | K19: 11.2896 | L19: 2.3568 | M19: 270
B20: 8≤ kW <19 | C20: EU Stage V | D20: 6.08 | E20: 0.4 | F20: 270 | I20: 8≤ kW <19 | J20: EU Stage V | K20: 6.12864 | L20: 0.5892 | M20: 270
B21: 19≤ kW <37 | C21: EU Stage I | D21: 9.8 | E21: 1.4 | F21: 262 | I21: 19≤ kW <37 | J21: EU Stage I | K21: 10.28608 | L21: 3.29952 | M21: 286.89
B22: 19≤ kW <37 | C22: EU Stage II | D22: 6.5 | E22: 0.4 | F22: 262 | I22: 19≤ kW <37 | J22: EU Stage II | K22: 6.7224625 | L22: 0.94272 | M22: 286.89
B23: 19≤ kW <37 | C23: EU Stage IIIA | D23: 6.08 | E23: 0.4 | F23: 262 | I23: 19≤ kW <37 | J23: EU Stage IIIA | K23: 6.89472 | L23: 1.131264 | M23: =F23*_xlfn.XLOOKUP(J23,$H$77:$H$82,$M$77:$M$82,,0,) -> 286.89
B24: 19≤ kW <37 | C24: EU Stage IIIB | D24: =D23 -> 6.08 | E24: 0.4 | F24: =F23 -> 262 | I24: 19≤ kW <37 | J24: EU Stage IIIB | K24: 6.12864 | L24: 0.5892 | M24: 262
B25: 19≤ kW <37 | C25: EU Stage IV | D25: 6.08 | E25: 0.4 | F25: =F24 -> 262 | I25: 19≤ kW <37 | J25: EU Stage IV | K25: 6.12864 | L25: 0.5892 | M25: 262
B26: 19≤ kW <37 | C26: EU Stage V | D26: 3.81 | E26: 0.015 | F26: 262 | I26: 19≤ kW <37 | J26: EU Stage V | K26: 3.84048 | L26: 0.022095 | M26: 262
B27: 37≤ kW <56 | C27: EU Stage I | D27: 7.7 | E27: 0.4 | F27: 260 | I27: 37≤ kW <56 | J27: EU Stage I | K27: 8.08192 | L27: 0.94272 | M27: 284.7
B28: 37≤ kW <56 | C28: EU Stage II | D28: 5.5 | E28: 0.2 | F28: 260 | I28: 37≤ kW <56 | J28: EU Stage II | K28: 5.6882375 | L28: 0.47136 | M28: 284.7
B29: 37≤ kW <56 | C29: EU Stage IIIA | D29: 3.81 | E29: 0.2 | F29: 260 | I29: 37≤ kW <56 | J29: EU Stage IIIA | K29: 4.32054 | L29: 0.565632 | M29: 284.7
B30: 37≤ kW <56 | C30: EU Stage IIIB | D30: 3.81 | E30: 0.025 | F30: 260 | I30: 37≤ kW <56 | J30: EU Stage IIIB | K30: 3.84048 | L30: 0.036825 | M30: 260
B31: 37≤ kW <56 | C31: EU Stage IV | D31: =D30 -> 3.81 | E31: =E30 -> 0.025 | F31: =F30 -> 260 | I31: 37≤ kW <56 | J31: EU Stage IV | K31: 3.84048 | L31: 0.036825 | M31: 260
B32: 37≤ kW <56 | C32: EU Stage V | D32: 3.81 | E32: 0.015 | F32: 260 | I32: 37≤ kW <56 | J32: EU Stage V | K32: 3.84048 | L32: 0.022095 | M32: 260
B33: 56≤ kW <75 | C33: EU Stage I | D33: 7.7 | E33: 0.4 | F33: 260 | I33: 56≤ kW <75 | J33: EU Stage I | K33: 8.08192 | L33: 0.94272 | M33: 284.7
B34: 56≤ kW <75 | C34: EU Stage II | D34: 5.5 | E34: 0.2 | F34: 260 | I34: 56≤ kW <75 | J34: EU Stage II | K34: 5.6882375 | L34: 0.47136 | M34: 284.7
B35: 56≤ kW <75 | C35: EU Stage IIIA | D35: 3.81 | E35: 0.2 | F35: 260 | I35: 56≤ kW <75 | J35: EU Stage IIIA | K35: 4.32054 | L35: 0.565632 | M35: 284.7
B36: 56≤ kW <75 | C36: EU Stage IIIB | D36: 2.97 | E36: 0.025 | F36: 260 | I36: 56≤ kW <75 | J36: EU Stage IIIB | K36: 2.99376 | L36: 0.036825 | M36: 260
B37: 56≤ kW <75 | C37: EU Stage IV | D37: 0.4 | E37: 0.025 | F37: 260 | I37: 56≤ kW <75 | J37: EU Stage IV | K37: 0.4032 | L37: 0.036825 | M37: 260
B38: 56≤ kW <75 | C38: EU Stage V | D38: 0.4 | E38: 0.015 | F38: 260 | I38: 56≤ kW <75 | J38: EU Stage V | K38: 0.4032 | L38: 0.022095 | M38: 260
B39: 75≤ kW <130 | C39: EU Stage I | D39: 8.1 | E39: 0.2 | F39: 255 | I39: 75≤ kW <130 | J39: EU Stage I | K39: 8.50176 | L39: 0.47136 | M39: 279.225
B40: 75≤ kW <130 | C40: EU Stage II | D40: 5.2 | E40: 0.2 | F40: 255 | I40: 75≤ kW <130 | J40: EU Stage II | K40: 5.37797 | L40: 0.47136 | M40: 279.225
B41: 75≤ kW <130 | C41: EU Stage IIIA | D41: 3.24 | E41: 0.2 | F41: 255 | I41: 75≤ kW <130 | J41: EU Stage IIIA | K41: 3.67416 | L41: 0.565632 | M41: 279.225
B42: 75≤ kW <130 | C42: EU Stage IIIB | D42: 2.97 | E42: 0.025 | F42: 255 | I42: 75≤ kW <130 | J42: EU Stage IIIB | K42: 2.99376 | L42: 0.036825 | M42: 255
B43: 75≤ kW <130 | C43: EU Stage IV | D43: 0.4 | E43: 0.025 | F43: 255 | I43: 75≤ kW <130 | J43: EU Stage IV | K43: 0.4032 | L43: 0.036825 | M43: 255
B44: 75≤ kW <130 | C44: EU Stage V | D44: 0.4 | E44: 0.015 | F44: 255 | I44: 75≤ kW <130 | J44: EU Stage V | K44: 0.4032 | L44: 0.022095 | M44: 255
B45: 130≤ kW <560 | C45: EU Stage I | D45: 7.6 | E45: 0.2 | F45: 250 | I45: 130≤ kW <560 | J45: EU Stage I | K45: 7.97696 | L45: 0.47136 | M45: 273.75
B46: 130≤ kW <560 | C46: EU Stage II | D46: 5.2 | E46: 0.1 | F46: 250 | I46: 130≤ kW <560 | J46: EU Stage II | K46: 5.37797 | L46: 0.23568 | M46: 273.75
B47: 130≤ kW <560 | C47: EU Stage IIIA | D47: 3.24 | E47: 0.1 | F47: 250 | I47: 130≤ kW <560 | J47: EU Stage IIIA | K47: 3.67416 | L47: 0.282816 | M47: 273.75
B48: 130≤ kW <560 | C48: EU Stage IIIB | D48: 1.8 | E48: 0.025 | F48: 250 | I48: 130≤ kW <560 | J48: EU Stage IIIB | K48: 1.8144 | L48: 0.036825 | M48: 250
B49: 130≤ kW <560 | C49: EU Stage IV | D49: 0.4 | E49: 0.025 | F49: 250 | I49: 130≤ kW <560 | J49: EU Stage IV | K49: 0.4032 | L49: 0.036825 | M49: 250
B50: 130≤ kW <560 | C50: EU Stage V | D50: 0.4 | E50: 0.015 | F50: 250 | I50: 130≤ kW <560 | J50: EU Stage V | K50: 0.4032 | L50: 0.022095 | M50: 250
B51: kW >560 | C51: EU Stage I | D51: =D52 -> 3.5 | E51: 0.045 | F51: 250 | I51: kW >560 | J51: EU Stage I | K51: 3.6736 | L51: 0.106056 | M51: 273.75
B52: kW >560 | C52: EU Stage II | D52: 3.5 | E52: 0.045 | F52: 250 | I52: kW >560 | J52: EU Stage II | K52: 3.6197875 | L52: 0.106056 | M52: 273.75
B53: kW >560 | C53: EU Stage IIIA | D53: 3.5 | E53: 0.045 | F53: 250 | I53: kW >560 | J53: EU Stage IIIA | K53: 3.969 | L53: 0.1272672 | M53: 273.75
B54: kW >560 | C54: EU Stage IIIB | D54: 3.5 | E54: 0.045 | F54: 250 | I54: kW >560 | J54: EU Stage IIIB | K54: 3.528 | L54: 0.066285 | M54: 250
B55: kW >560 | C55: EU Stage IV | D55: =D56 -> 3.5 | E55: 0.045 | F55: 250 | I55: kW >560 | J55: EU Stage IV | K55: 3.528 | L55: 0.066285 | M55: 250
B56: kW >560 | C56: EU Stage V | D56: 3.5 | E56: 0.045 | F56: 250 | I56: kW >560 | J56: EU Stage V | K56: 3.528 | L56: 0.066285 | M56: 250
H59: Deterioration factor adjustment for diesel NRMM
I60: NOx | J60: TSP
H61: Pre EU Stage I | I61: =1+0.024 -> 1.024 | J61: 1.473
H62: EU Stage I | I62: =1+0.024 -> 1.024 | J62: 1.473
H63: EU Stage II | I63: =1+0.009 -> 1.009 | J63: 1.473
H64: EU Stage IIIA | I64: 1.008 | J64: 1.473
H65: EU Stage IIIB | I65: 1.008 | J65: 1.473
H66: EU Stage IV | I66: 1.008 | J66: 1.473
H67: EU Stage V | I67: 1.008 | J67: 1.473
H69: Load adjustment factor for diesel NRMM
I70: Load | J70: Load factor | K70: NOx | L70: TSP | M70: FC
H71: EU Stage I | I71: High | J71: >0.45 | K71: 0.95 | L71: 1.23 | M71: 1.01
H72: EU Stage II | I72: High | J72: >0.45 | K72: 0.95 | L72: 1.23 | M72: 1.01
H73: EU Stage IIIA | I73: High | J73: >0.45 | K73: 1.04 | L73: 1.47 | M73: 1.01
H74: EU Stage IIIB | I74: High | J74: >0.45 | K74: 1 | L74: 1 | M74: 1
H75: EU Stage IV | I75: High | J75: >0.45 | K75: 1 | L75: 1 | M75: 1
H76: EU Stage V | I76: High | J76: >0.45 | K76: 1 | L76: 1 | M76: 1
H77: EU Stage I | I77: Middle | J77: 0.25<LF<0.45 | K77: 1.025 | L77: 1.6 | M77: 1.095
H78: EU Stage II | I78: Middle | J78: 0.25<LF<0.45 | K78: 1.025 | L78: 1.6 | M78: 1.095
H79: EU Stage IIIA | I79: Middle | J79: 0.25<LF<0.45 | K79: 1.125 | L79: 1.92 | M79: 1.095
H80: EU Stage IIIB | I80: Middle | J80: 0.25<LF<0.45 | K80: 1 | L80: 1 | M80: 1
H81: EU Stage IV | I81: Middle | J81: 0.25<LF<0.45 | K81: 1 | L81: 1 | M81: 1
H82: EU Stage V | I82: Middle | J82: 0.25<LF<0.45 | K82: 1 | L82: 1 | M82: 1
H83: EU Stage I | I83: Low | J83: <0.25 | K83: 1.1 | L83: 1.97 | M83: 1.18
H84: EU Stage II | I84: Low | J84: <0.25 | K84: 1.1 | L84: 1.97 | M84: 1.18
H85: EU Stage IIIA | I85: Low | J85: <0.25 | K85: 1.21 | L85: 2.37 | M85: 1.18
H86: EU Stage IIIB | I86: Low | J86: <0.25 | K86: 1 | L86: 1 | M86: 1
H87: EU Stage IV | I87: Low | J87: <0.25 | K87: 1 | L87: 1 | M87: 1
H88: EU Stage V | I88: Low | J88: <0.25 | K88: 1 | L88: 1 | M88: 1

Sheet Hybrid assumption (hidden)
A1: Fuel use data collected for hybrid equipment. Sample population then used to produce a trend. The reduction in fuel use was directly translated into emission reductions.
A3: Name | B3: Equipment type | C3: Power rating (kW) | D3: % reduction | E3: Notes | G3: Least square line
A4: Kobelco SK210H-LC large excavator | B4: Excavator | C4: 124 | D4: =AVERAGE(13.9,16.7,12.1) -> 14.23333333 | E4: MACE reported 20% reduction in fuel used | G4: x | H4: y1 | I4: % | J4: y2 | K4: %
A5: HB365LC-3 Komatsu | B5: Excavator | C5: 202 | D5: =AVERAGE(30,22,20) -> 24 | E5: Komatsu reported reduction per typical work pattern vs various other plant equivalents. Average taken. | G5: 100 | H5: =G5*$D$14 -> 11.46410213 | I5: =100-H5 -> 88.53589787 | J5: =G5*$D$13+16.208 -> 19.218 | K5: =100-J5 -> 80.782
A6: John Deere 644L wheel loader | B6: Loader | C6: 194 | D6: 25 | E6: The average customer can expect about a 25% reduction in fuel consumption using the 644K | G6: 150 | H6: =G6*$D$14 -> 17.1961532 | I6: =100-H6 -> 82.8038468 | J6: =G6*$D$13+16.208 -> 20.723 | K6: 79.277
A7: Volvo EC300E Hybrid | B7: Excavator | C7: 188 | D7: 15 | E7: 15% lower fuel consumption | G7: 200 | H7: =G7*$D$14 -> 22.92820426 | I7: =100-H7 -> 77.07179574 | J7: 22.228 | K7: 77.772
A8: Volvo EC350 Hybrid | B8: Excavator | C8: 219 | D8: 15 | E8: 15% lower fuel consumption | G8: 250 | H8: =G8*$D$14 -> 28.66025533 | I8: 71.33974467 | J8: 23.733 | K8: 76.267
A9: Hitachi ZH 210 Hybrid | B9: Excavator | C9: 122 | D9: =AVERAGE(31,36) -> 33.5 | E9: 31% reduction in fuel consumption (PWR mode vs ZX-3 P-mode) 36% reduction in fuel consumptuon (ECO mode vs ZX-3 P-mode) | G9: 300 | H9: =G9*$D$14 -> 34.39230639 | I9: 65.60769361 | J9: 25.238 | K9: 74.762
A10: HB215LC-3 hydrid | B10: Excavator | C10: 110 | D10: =AVERAGE(22,20,5) -> 15.66666667 | E10: Reported reduction per typical work pattern vs various other plant equivalents. Average taken.
A11: Sennebogen 860 E hybrid | B11: Material handler | C11: 261 | D11: 30
C13: Line of best fit | D13: 0.0301 | E13: This figure has been produced from plotting hybrid plant power ratings and their average % reduction in fuel. This is the more conservative assumption on fuel savings as the power rating increases. Therefore the emissions calculated in the tool are directly based on the fuel savings, in the absence of more detailed data.
C14: Line of best fit using "least squares" method | D14: =LINEST(D4:D11,C4:C11,0,0) -> 0.1146410213 | E14: 0
C17: x | D17: y
C18: 0 | D18: =((0.0301*C18)+16.208)/100 -> 0.16208
C20: Reduction
C21: =1-(((0.0301*C18)+16.208)/100) -> 0.83792

Sheet Lists (hidden)
A6: Equipment type | C6: EU Stage | E6: Power rating | K6: Construction phase | N6: Technology/fuel type | P6: GLA NRMM policy areas
A7: [Select type] | C7: [Select Stage] | E7: [Select rating] | H7: Constant speed engine (e.g. Generator) | I7: EU Stage V (Generator) | K7: [Select phase] | N7: [Select type] | P7: Central Activity Zone and Canary Wharf
A8: Agitator/mixer | C8: EU Stage I | E8: kW <8 | F8: 8 | H8: <56kW | I8: EU Stage V | K8: =_xlfn.CONCAT(L8,'Site details'!B15) -> 1) Site setup and demolition | L8: 1) | N8: Diesel | P8: Opportunity Area
A9: Articulated dump truck | C9: EU Stage II | E9: 8≤ kW <19 | F9: 19 | H9: Southwark Baseline | I9: EU Stage IV | K9: =_xlfn.CONCAT(L9,'Site details'!B16) -> 2) Basement excavation and piling | L9: 2) | N9: LPG | P9: Other areas of Greater London
A10: Bulldozer | C10: EU Stage IIIA | E10: 19≤ kW <37 | F10: 37 | K10: =_xlfn.CONCAT(L10,'Site details'!B17) -> 3) Sub-structure | L10: 3) | N10: Biodiesel
A11: Cleaning equipment | C11: EU Stage IIIB | E11: 37≤ kW <56 | F11: 56 | K11: =_xlfn.CONCAT(L11,'Site details'!B18) -> 4) Super-structure | L11: 4) | N11: Hybrid
A12: Compactors/tampers/rammers | C12: EU Stage IV | E12: 56≤ kW <75 | F12: 75 | K12: =_xlfn.CONCAT(L12,'Site details'!B19) -> 5) Cladding | L12: 5) | N12: Electric/battery
A13: Compressor | C13: EU Stage V | E13: 75≤ kW <130 | F13: 130 | K13: =_xlfn.CONCAT(L13,'Site details'!B20) -> 6) Fit-out, testing and commissioning | L13: 6)
A14: Concrete equipment | C14: n/a | E14: 130≤ kW <560 | F14: 560
A15: Cranes/lifts/platform | E15: kW >560
A16: Crusher
A17: Drilling rig
A18: Dumper
A19: Excavator
A20: Forklift
A21: Grader
A22: Lighting
A23: Loader
A24: Material handler
A25: Paving equipment
A26: Piling rig
A27: Pump
A28: Telehandler
A29: Tractor
A30: Truck
A31: Constant speed engine (e.g. Generator)
A32: Other
